Workbook

Sheet 表紙
A23: 2026年前期
A24: 折込プラス紙数表

Sheet 取扱基準
A2: 新聞折込広告取扱基準
A5: 当社は日本新聞協会の「折込広告の取扱基準」および、新聞社の「広告掲載基準」を参考として、折込広告取扱基準を設けております。
A7: つぎのような折込チラシはお引き受けできかねます。
A10: （1） 広告の内容がはっきりしないもの。および、広告主の所在地、事業所名、ＨＰアドレス等のいずれの記載もなく、広告責任者が明確でないもの。
A12: （2） 虚偽または誇大表現により、誤認されるおそれのあるもの。「日本一」「業界一」等の最高・最大級の表現、「絶対に」「確実に」等、商品の性能、
A14: 効能、効果を保証する断定的表現を用いたもの。
A16: （3） 景表法（不当景品付販売・不当表示の禁止）、不正競争防止法（コピー商品等の販売宣伝の禁止）などのほか、薬事法、医療法など法律や条例に
A18: 触れると思われるもの。（医薬品等を否定する内容や迷信に類する非科学的な内容のもの等）
A20: （4） 広告主の主観的意見、意図、表現がみられ、他者を誹謗中傷し、結果的に他者の名誉、信用を傷つけるおそれがある表現のもの。（誹謗中傷広告等）
A22: （5）「新聞業における公正競争規約」に触れる抽選券・金券などを刷り込んだもの、クーポン付き広告に関する規則、運営細則に違反するもの。
A24: （6） 政治問題や係争中（もしくは係争が予想される）問題について、一方的な主張を述べたものや、立候補が予定されている人物の名称を記載するなど、
A26: 選挙の事前運動と推量されるもの。
A28: （7） 煽情的な言葉や、写真、イラスト等を用いた表現で、暴力・犯罪を肯定・礼讃するなど、公序良俗に反する表現のもの。
A30: （8） 不動産広告で、広告主の名称、所在地、販売物件の所在地、地目、建築の可否、建ぺい率、交通アクセス、価格、管理費、維持費、販売条件、
A32: 宅建業法による免許証番号などが明確に記載されてないもの。
A34: （9） 貸金業広告で、貸金業規制法で定められている必要事項が表示されていないもの。 （商号、名称、氏名、登録番号、住所、利率等）
A36: （10）発行本社の新聞と混同、誤認されると思われるものや、他紙の社名、題字、記事、催事などが掲載、引用されているもの。
A38: その他、著作権・肖像権・商標権等を侵害するおそれのあるもの。
A40: （11）新聞社がそれぞれ定めた広告掲載基準に照らして、新聞折込が不適当と認められるもの。
A42: （12）新聞販売店の営業活動に支障をきたし、不利益になると判断されるもの。
A46: ■ 上記に限らず、判断がむずかしいものは、新聞発行本社、関係諸機関の指導・協議によって決めさせていただきます。
A48: なお、ご不明な点がございましたら当社へご相談下さい。

Sheet 災害時注意事項
A2: 大規模災害発生時における新聞折込広告の取り扱いについて
B5: 大規模な災害（大地震、津波、洪水、豪雪、大火災、大規模停電、火山噴火、原子力発電所の事故、新型感染症の大流行、他国からの攻撃など）に見舞われた
B7: 場合、中日新聞折込広告協同組合加盟の折込会社と中日新聞販売店は被災の状況を的確に判断し、折込広告をご愛読者へお届けするために全力を傾注します。
B9: しかしながらライフラインや通信網、輸送ルートなどが遮断され、被災地の新聞販売店や従業員に甚大な被害が及んだ場合は、クライアント様のご要望にお応
B11: えできない場合もあります。
B13: この様に事前の予測と回避が不可能な事態が発生し、折込会社と新聞販売店の努力にも関わらず指定日に新聞折込が出来なかった場合、折込会社と新聞販売店
B15: は一切の責任を負う事ができません。あらかじめご容赦いただきますようお願い申しあげます。
B24: 東海地震に関する「警戒宣言」発令時の折込広告の取り扱いについて
B26: 『大地震への警戒宣言や注意情報が発令された場合、新聞折込広告は中止になります』
B29: 愛知県、三重県の大部分の市町村と岐阜県中津川市は大規模地震対策措置法により、地震防災対策強化地域に指定されています。指定された地域で大規
B31: 模な地震の発生が予知されますと、内閣総理大臣から警戒宣言が発令されることになっています。また東海地震の前兆現象が高まると、気象庁から注意
B33: 情報が発表されます。
B35: 警戒宣言発令後は交通規制が始まり、指定地域内へ車両の進入が禁止されるほか、一般の道路も時速20㎞に速度制限されるため大渋滞の発生が予想され
B37: ます。
B39: このため東海地震の注意情報や警戒宣言の発令と同時に、お客様からお預かりした新聞折込広告の配送作業は「中止」させていただきます。配送中の車
B41: 両に対しては折込広告をお預かりした状態ですみやかに帰社するように指示しますが、交通事情と警察官の指示によって止むを得ず路上に駐車し避難し
B43: なければならない事も想定されます。
B45: すでに配送が完了した新聞折込広告も、新聞販売店での組み込み作業が「中止」になり新聞折込ができなくなります。幸い注意情報や警戒宣言が解除
B47: された場合も、混乱が解消するまでしばらくの間は新聞折込ができない場合もあります。
B49: 何卒ご理解とご了承をいただけますようお願いいたします。

Sheet 取扱事項
A2: 中日新聞専売店の「折込プラス」について
A7: 1. 配布日
A9: ・愛知県：毎月第2金曜日 第4金曜日
C10: ※未購読者への配布は当日とその翌々日中が原則
C11: ※2025年12月は第2金曜日、2026年5月は第4金曜日のみの実施となります。
A12: ・岐阜県：毎月第2金曜日（※1）
C13: ※未購読者への配布は当日とその翌日中が原則
C14: （※1）一部地域のみ実施となります。
A16: ・三重県：毎月第2金曜日（※1） 第4金曜日（※2）
C17: ※未購読者への配布は当日とその翌日中が原則
C18: （※1）一部地域のみ実施となります。 （※2）桑名市・員弁郡
C19: ※2025年12月は第2金曜日のみの実施となります。
A22: 2. 配布物
A24: ・中日新聞折込広告取扱い基準を満たしたチラシ。
A28: 3. 配布方法
A30: ・中日新聞の購読者へは朝刊に折り込み。
A31: ・中日新聞未購読者へは情報紙とともに配布。
A35: 4. 定義に関して
A37: [折込プラス]配布定数＝折込定数＋未購読配布数
A38: ※全戸配布ではございませんのでご注意下さい。
A42: 5. 配布料金
A44: ・配布エリア地区の新聞折込チラシと同額を原則とする。
A45: ・特殊な形態、サイズは折込広告料金に準じ個別に検討する。
A49: 6. 取扱注意事項
A51: ・一部地域では折込プラスサービスは行っておりません。
A52: ・販売店個店単位で折込プラス定数を満たすことが原則となります.
A53: ・合売店では一部他紙一般紙にも折り込まれます。
A54: ・同じ配布エリアでも配布日によって情報紙が異なります。
A55: ・台風などの悪天候の場合、配布日は上記の限りではありません。

Sheet 名古屋市
A1: 折込日 | C1: 広告主 | G1: サイズ
C2: チラシ銘柄 | G2: 部数 | H2: =SUM(F27) -> 0
A3: 名古屋市 | I3: 2026年前期（12月1日以降）
A4: 地 区 | C4: 折込プラス部数 | E4: 依頼部数 | G4: 朝刊折込部数 | I4: 未購読部数
A5: 中区 | C5: =中区・東区!F25 -> 11550 | E5: =中区・東区!G25 -> 0 | F5: =IFERROR(SUM(E5)," ") -> 0 | G5: =中区・東区!H25 -> 11550 | I5: =中区・東区!I25 -> 0
A6: 東区 | C6: =中区・東区!F48 -> 28100 | E6: =中区・東区!G48 -> 0 | F6: =IFERROR(SUM(E6)," ") -> 0 | G6: =中区・東区!H48 -> 11000 | I6: =中区・東区!I48 -> 17100
A7: 中村区 | C7: =中村区!F48 -> 49900 | E7: =中村区!G48 -> 0 | F7: =IFERROR(SUM(E7)," ") -> 0 | G7: =中村区!H48 -> 21650 | I7: =中村区!I48 -> 28250
A8: 西区 | C8: =西区!F48 -> 51800 | E8: =西区!G48 -> 0 | F8: =IFERROR(SUM(E8)," ") -> 0 | G8: =西区!H48 -> 22700 | I8: =西区!I48 -> 29100
A9: 北区 | C9: =北区!F48 -> 65500 | E9: =北区!G48 -> 0 | F9: 0 | G9: =北区!H48 -> 25250 | I9: =北区!I48 -> 40250
A10: 千種区 | C10: =千種区・名東区!F24 -> 58900 | E10: =千種区・名東区!G24 -> 0 | F10: 0 | G10: =千種区・名東区!H24 -> 21650 | I10: =千種区・名東区!I24 -> 37250
A11: 名東区 | C11: =千種区・名東区!F48 -> 67500 | E11: =千種区・名東区!G48 -> 0 | F11: 0 | G11: =千種区・名東区!H48 -> 24750 | I11: =千種区・名東区!I48 -> 42750
A12: 守山区 | C12: =守山区・昭和区!F27 -> 60900 | E12: =守山区・昭和区!G27 -> 0 | F12: 0 | G12: =守山区・昭和区!H27 -> 25000 | I12: =守山区・昭和区!I27 -> 35900
A13: 昭和区 | C13: =守山区・昭和区!F48 -> 40400 | E13: =守山区・昭和区!G48 -> 0 | F13: 0 | G13: =守山区・昭和区!H48 -> 16350 | I13: =守山区・昭和区!I48 -> 24050
A14: 天白区 | C14: =天白区・瑞穂区!F24 -> 55150 | E14: =天白区・瑞穂区!G24 -> 0 | F14: 0 | G14: =天白区・瑞穂区!H24 -> 23000 | I14: =天白区・瑞穂区!I24 -> 32150
A15: 瑞穂区 | C15: =天白区・瑞穂区!F48 -> 35700 | E15: =天白区・瑞穂区!G48 -> 0 | F15: 0 | G15: =天白区・瑞穂区!H48 -> 15900 | I15: =天白区・瑞穂区!I48 -> 19800
A16: 南区 | C16: =南区!F48 -> 54800 | E16: =南区!G48 -> 0 | F16: 0 | G16: =南区!H48 -> 22150 | I16: =南区!I48 -> 32650
A17: 緑区 | C17: =緑区!F48 -> 72200 | E17: =緑区!G48 -> 0 | F17: 0 | G17: =緑区!H48 -> 35550 | I17: =緑区!I48 -> 36650
A18: 熱田区 | C18: =熱田区・港区!F20 -> 22950 | E18: =熱田区・港区!G20 -> 0 | F18: 0 | G18: =熱田区・港区!H20 -> 9900 | I18: =熱田区・港区!I20 -> 13050
A19: 港区 | C19: =熱田区・港区!F48 -> 47600 | E19: =熱田区・港区!G48 -> 0 | F19: 0 | G19: =熱田区・港区!H48 -> 19250 | I19: =熱田区・港区!I48 -> 28350
A20: 中川区 | C20: =中川区!F48 -> 75050 | E20: =中川区!G48 -> 0 | F20: 0 | G20: =中川区!H48 -> 31750 | I20: =中川区!I48 -> 43300
A21: 合計 | C21: =SUM(C5:C20) -> 798000 | F21: =SUM(F5:F20) -> 0 | G21: =SUM(G5:G20) -> 337400 | I21: =SUM(I5:I20) -> 460600
A23: 愛知県 | C23: 折込プラス部数 | E23: 依頼部数 | G23: 朝刊折込部数 | I23: 未購読部数
A24: 名古屋市 | C24: =C21 -> 798000 | F24: =SUM(F21) -> 0 | G24: =G21 -> 337400 | I24: =I21 -> 460600
A25: 尾張地区 | C25: =SUM(尾張地区!C37) -> 995800 | E25: =IFERROR(尾張地区!F37," ") -> 0 | F25: =E25 -> 0 | G25: =SUM(尾張地区!G37) -> 440850 | I25: =SUM(尾張地区!I37) -> 554950
A26: 三河地区 | C26: =SUM(三河地区!C26) -> 791600 | E26: =IFERROR(三河地区!F26," ") -> 0 | F26: =E26 -> 0 | G26: =SUM(三河地区!G26) -> 345900 | I26: =SUM(三河地区!I26) -> 445700
A27: 合計 | C27: =SUM(C24:C26) -> 2585400 | E27: =SUM(E24:F26) -> 0 | F27: =SUM(F24:F26) -> 0 | G27: =SUM(G24:G26) -> 1124150 | I27: =SUM(I24:I26) -> 1461250
I28: ㈱中日総合サービス

Sheet 中区・東区
A1: 折込日 | E1: 広告主 | H1: サイズ
E2: チラシ銘柄 | H2: 部数 | I2: =SUM(A6,A28) -> 0
K3: ※2025年12月は第2金曜日、2026年5月は第4金曜日のみの実施となります。
A4: 地区 | D4: 店名 | F4: 折込プラス部数 | G4: 依頼部数 | H4: 朝刊折込部数 | I4: 未購読部数 | J4: 第2金曜日 | K4: 第4金曜日
A5: 中区 | D5: 230165Z13101 | E5: 新栄NS | F5: 1000 | H5: =IFERROR(VLOOKUP(D5,[1]全紙!$F:$K,6,0),"") -> 1000 | I5: =F5-H5 -> 0
A6: =SUM(G25) -> 0 | B6: ／ | C6: =SUM(F25) -> 11550 | D6: 230165Z13102 | E6: 中部NS | F6: 900 | H6: =IFERROR(VLOOKUP(D6,[1]全紙!$F:$K,6,0),"") -> 900 | I6: =F6-H6 -> 0
D7: 230165Z13104 | E7: 久屋大通NS | F7: 3350 | H7: =IFERROR(VLOOKUP(D7,[1]全紙!$F:$K,6,0),"") -> 3350 | I7: =F7-H7 -> 0
D8: 230165Z13106 | E8: 瓦町N | F8: 950 | H8: =IFERROR(VLOOKUP(D8,[1]全紙!$F:$K,6,0),"") -> 950 | I8: 0
D9: 230165Z13109 | E9: 上前津NS | F9: 1500 | H9: =IFERROR(VLOOKUP(D9,[1]全紙!$F:$K,6,0),"") -> 1500 | I9: 0
D10: 230165Z13110 | E10: 橘N | F10: 1150 | H10: =IFERROR(VLOOKUP(D10,[1]全紙!$F:$K,6,0),"") -> 1150 | I10: 0
D11: 230165Z13111 | E11: 正木N | F11: 850 | H11: =IFERROR(VLOOKUP(D11,[1]全紙!$F:$K,6,0),"") -> 850 | I11: 0
D12: 230165Z13112 | E12: 市内金山NMS | F12: 1850 | H12: =IFERROR(VLOOKUP(D12,[1]全紙!$F:$K,6,0),"") -> 1850 | I12: 0
H13: =IFERROR(VLOOKUP(D13,[1]全紙!$F:$K,6,0),"") -> 
H14: =IFERROR(VLOOKUP(D14,[1]全紙!$F:$K,6,0),"") -> 
H15: =IFERROR(VLOOKUP(D15,[1]全紙!$F:$K,6,0),"") -> 
H16: =IFERROR(VLOOKUP(D16,[1]全紙!$F:$K,6,0),"") -> 
H17: =IFERROR(VLOOKUP(D17,[1]全紙!$F:$K,6,0),"") -> 
H18: =IFERROR(VLOOKUP(D18,[1]全紙!$F:$K,6,0),"") -> 
H19: =IFERROR(VLOOKUP(D19,[1]全紙!$F:$K,6,0),"") -> 
H20: =IFERROR(VLOOKUP(D20,[1]全紙!$F:$K,6,0),"") -> 
H21: =IFERROR(VLOOKUP(D21,[1]全紙!$F:$K,6,0),"") -> 
H22: =IFERROR(VLOOKUP(D22,[1]全紙!$F:$K,6,0),"") -> 
H23: =IFERROR(VLOOKUP(D23,[1]全紙!$F:$K,6,0),"") -> 
H24: =IFERROR(VLOOKUP(D24,[1]全紙!$F:$K,6,0),"") -> 
E25: =CONCATENATE(FIXED(COUNTA(E5:E24),0,0)," 店") -> 8 店 | F25: =SUM(F5:F24) -> 11550 | G25: =SUM(G5:G24) -> 0 | H25: =SUM(H5:H24) -> 11550 | I25: =SUM(I5:I24) -> 0
A27: 東区 | D27: 230160Z12101 | E27: 大曽根NMS | F27: 2650 | H27: =IFERROR(VLOOKUP(D27,[1]全紙!$F:$K,6,0),"") -> 1350 | I27: =F27-H27 -> 1300 | J27: ○ | K27: ○
A28: =SUM(G48) -> 0 | B28: ／ | C28: =SUM(F48) -> 28100 | D28: 230160Z12102 | E28: 赤塚N | F28: 3350 | H28: =IFERROR(VLOOKUP(D28,[1]全紙!$F:$K,6,0),"") -> 1250 | I28: 2100 | J28: ○ | K28: ○
D29: 230160Z12105 | E29: 矢田NMS | F29: 3450 | H29: =IFERROR(VLOOKUP(D29,[1]全紙!$F:$K,6,0),"") -> 1350 | I29: 2100 | J29: ○ | K29: ○
D30: 230160Z12106 | E30: 葵NM | F30: 3150 | H30: =IFERROR(VLOOKUP(D30,[1]全紙!$F:$K,6,0),"") -> 1350 | I30: 1800 | J30: ○ | K30: ○
D31: 230160Z12107 | E31: 布池NMS | F31: 4050 | H31: =IFERROR(VLOOKUP(D31,[1]全紙!$F:$K,6,0),"") -> 1500 | I31: 2550 | J31: ○ | K31: ○
D32: 230160Z12109 | E32: 高岳N | F32: 3400 | H32: =IFERROR(VLOOKUP(D32,[1]全紙!$F:$K,6,0),"") -> 1050 | I32: 2350 | J32: ○ | K32: ○
D33: 230160Z12110 | E33: 大幸NMS | F33: 3600 | H33: =IFERROR(VLOOKUP(D33,[1]全紙!$F:$K,6,0),"") -> 1400 | I33: 2200 | J33: ○ | K33: ○
D34: 230160Z12111 | E34: 明倫NMS | F34: 4450 | H34: =IFERROR(VLOOKUP(D34,[1]全紙!$F:$K,6,0),"") -> 1750 | I34: 2700 | J34: ○ | K34: ○
H35: =IFERROR(VLOOKUP(D35,[1]全紙!$F:$K,6,0),"") -> 
H36: =IFERROR(VLOOKUP(D36,[1]全紙!$F:$K,6,0),"") -> 
H37: =IFERROR(VLOOKUP(D37,[1]全紙!$F:$K,6,0),"") -> 
H38: =IFERROR(VLOOKUP(D38,[1]全紙!$F:$K,6,0),"") -> 
H39: =IFERROR(VLOOKUP(D39,[1]全紙!$F:$K,6,0),"") -> 
H40: =IFERROR(VLOOKUP(D40,[1]全紙!$F:$K,6,0),"") -> 
H41: =IFERROR(VLOOKUP(D41,[1]全紙!$F:$K,6,0),"") -> 
H42: =IFERROR(VLOOKUP(D42,[1]全紙!$F:$K,6,0),"") -> 
H43: =IFERROR(VLOOKUP(D43,[1]全紙!$F:$K,6,0),"") -> 
H44: =IFERROR(VLOOKUP(D44,[1]全紙!$F:$K,6,0),"") -> 
H45: =IFERROR(VLOOKUP(D45,[1]全紙!$F:$K,6,0),"") -> 
H46: =IFERROR(VLOOKUP(D46,[1]全紙!$F:$K,6,0),"") -> 
H47: =IFERROR(VLOOKUP(D47,[1]全紙!$F:$K,6,0),"") -> 
E48: =CONCATENATE(FIXED(COUNTA(E27:E47),0,0)," 店") -> 8 店 | F48: =SUM(F27:F47) -> 28100 | G48: =SUM(G27:G47) -> 0 | H48: =SUM(H27:H47) -> 11000 | I48: =SUM(I27:I47) -> 17100
A49: 2026年前期（12月1日以降） | K49: ㈱中日総合サービス

Sheet 中村区
A1: 折込日 | E1: 広告主 | H1: サイズ
E2: チラシ銘柄 | H2: 部数 | I2: =SUM(A6) -> 0
K3: ※2025年12月は第2金曜日、2026年5月は第4金曜日のみの実施となります。
A4: 地区 | D4: 店名 | F4: 折込プラス部数 | G4: 依頼部数 | H4: 朝刊折込部数 | I4: 未購読部数 | J4: 第2金曜日 | K4: 第4金曜日
A5: 中村区 | D5: 230145Z09104 | E5: 駅前NMS | F5: 3250 | H5: 2000 | I5: =F5-H5 -> 1250 | J5: ○ | K5: ○
A6: =SUM(G48) -> 0 | B6: ／ | C6: =SUM(F48) -> 49900 | D6: 230145Z09120 | E6: 名駅NS | F6: 6600 | H6: 3800 | I6: 2800 | J6: ○ | K6: ○
D7: 230145Z09108 | E7: 黄金NMS | F7: 5900 | H7: 2650 | I7: 3250 | J7: ○ | K7: ○
D8: 230145Z09109 | E8: 大鳥居NMS | F8: 5600 | H8: 2000 | I8: 3600 | J8: ○ | K8: ○
D9: 230145Z09111 | E9: 日比津NMS | F9: 4300 | H9: 1600 | I9: 2700 | J9: ○ | K9: ○
D10: 230145Z09113 | E10: 市内諏訪NMS | F10: 2400 | H10: 1000 | I10: 1400 | J10: ○ | K10: ○
D11: 230145Z09115 | E11: 太閤NMS | F11: 4800 | H11: 1750 | I11: 3050 | J11: ○ | K11: ○
D12: 230145Z09116 | E12: 稲葉地NM | F12: 3100 | H12: 1350 | I12: 1750 | J12: ○ | K12: ○
D13: 230145Z09117 | E13: 豊国通NMS | F13: 4550 | H13: 1550 | I13: 3000 | J13: ○ | K13: ○
D14: 230145Z09118 | E14: 烏森NMS | F14: 8900 | H14: 3750 | I14: 5150 | J14: ○ | K14: ○
D15: 230145Z09119 | E15: 中村常磐NM | F15: 500 | H15: 200 | I15: 300 | J15: ○ | K15: ○
E48: =CONCATENATE(FIXED(COUNTA(E5:E47),0,0)," 店") -> 11 店 | F48: =SUM(F5:F47) -> 49900 | G48: =SUM(G5:G47) -> 0 | H48: =SUM(H5:H47) -> 21650 | I48: =SUM(I5:I47) -> 28250
A49: 2026年前期（12月1日以降） | K49: ㈱中日総合サービス

Sheet 西区
A1: 折込日 | E1: 広告主 | H1: サイズ
E2: チラシ銘柄 | H2: 部数 | I2: =SUM(A6) -> 0
K3: ※2025年12月は第2金曜日、2026年5月は第4金曜日のみの実施となります。
A4: 地区 | D4: 店名 | F4: 折込プラス部数 | G4: 依頼部数 | H4: 朝刊折込部数 | I4: 未購読部数 | J4: 第2金曜日 | K4: 第4金曜日
A5: 西区 | D5: 230150Z10102 | E5: 榎NM | F5: 4800 | H5: 1800 | I5: =F5-H5 -> 3000 | J5: ○ | K5: ○
A6: =SUM(G48) -> 0 | B6: ／ | C6: =SUM(F48) -> 51800 | D6: 230150Z10103 | E6: 栄生NM | F6: 2000 | H6: 650 | I6: 1350 | J6: ○ | K6: ○
D7: 230150Z10104 | E7: 東枇杷島NMS | F7: 2150 | H7: 1100 | I7: 1050 | J7: ○ | K7: ○
D8: 230150Z10106 | E8: 浄心NMS | F8: 4500 | H8: 2250 | I8: 2250 | J8: ○ | K8: ○
D9: 230150Z10107 | E9: 名西NMS | F9: 3950 | H9: 1900 | I9: 2050 | J9: ○ | K9: ○
D10: 230150Z10109 | E10: 庄内通NMS | F10: 3700 | H10: 1700 | I10: 2000 | J10: ○ | K10: ○
D11: 230150Z10110 | E11: 又穂NMS | F11: 2500 | H11: 1050 | I11: 1450 | J11: ○ | K11: ○
D12: 230150Z10113 | E12: 上名古屋NMS | F12: 4300 | H12: 1800 | I12: 2500 | J12: ○ | K12: ○
D13: 230150Z10115 | E13: 浅間町NS | F13: 3100 | H13: 1700 | I13: 1400 | J13: ○ | K13: ○
D14: 230150Z10120 | E14: 中小田井NMS | F14: 4950 | H14: 2050 | I14: 2900 | J14: ○ | K14: ○
D15: 230150Z10122 | E15: 大野木NMS | F15: 3600 | H15: 1700 | I15: 1900 | J15: ○ | K15: ○
D16: 230150Z10123 | E16: 比良NMS | F16: 2850 | H16: 1150 | I16: 1700 | J16: ○ | K16: ○
D17: 230150Z10125 | E17: 山田NMS | F17: 3700 | H17: 1700 | I17: 2000 | J17: ○ | K17: ○
D18: 230150Z10127 | E18: 平田NM | F18: 5700 | H18: 2150 | I18: 3550 | J18: ○ | K18: ○
E48: =CONCATENATE(FIXED(COUNTA(E5:E47),0,0)," 店") -> 14 店 | F48: =SUM(F5:F47) -> 51800 | G48: =SUM(G5:G47) -> 0 | H48: =SUM(H5:H47) -> 22700 | I48: =SUM(I5:I47) -> 29100
A49: 2026年前期（12月1日以降） | K49: ㈱中日総合サービス

Sheet 北区
A1: 折込日 | E1: 広告主 | H1: サイズ
E2: チラシ銘柄 | H2: 部数 | I2: =SUM(A6) -> 0
K3: ※2025年12月は第2金曜日、2026年5月は第4金曜日のみの実施となります。
A4: 地区 | D4: 店名 | F4: 折込プラス部数 | G4: 依頼部数 | H4: 朝刊折込部数 | I4: 未購読部数 | J4: 第2金曜日 | K4: 第4金曜日
A5: 北区 | D5: 230155Z11101 | E5: 光城NMS | F5: 3450 | H5: 1350 | I5: =F5-H5 -> 2100 | J5: ○ | K5: ○
A6: =SUM(G48) -> 0 | B6: ／ | C6: =SUM(F48) -> 65500 | D6: 230155Z11102 | E6: 城北NMS | F6: 3000 | H6: 1200 | I6: 1800 | J6: ○ | K6: ○
D7: 230155Z11103 | E7: 城見通NMS | F7: 2700 | H7: 1300 | I7: 1400 | J7: ○ | K7: ○
D8: 230155Z11107 | E8: 志賀NMS | F8: 4350 | H8: 1650 | I8: 2700 | J8: ○ | K8: ○
D9: 230155Z11109 | E9: 東志賀NM | F9: 2500 | H9: 1050 | I9: 1450 | J9: ○ | K9: ○
D10: 230155Z11110 | E10: お福NMS | F10: 4150 | H10: 1900 | I10: 2250 | J10: ○ | K10: ○
D11: 230155Z11112 | E11: 上飯田NMS | F11: 6050 | H11: 2000 | I11: 4050 | J11: ○ | K11: ○
D12: 230155Z11114 | E12: 若葉通NMS | F12: 5550 | H12: 1750 | I12: 3800 | J12: ○ | K12: ○
D13: 230155Z11115 | E13: 市内飯田NMS | F13: 3350 | H13: 1350 | I13: 2000 | J13: ○ | K13: ○
D14: 230155Z11116 | E14: 金城NMS | F14: 3500 | H14: 1450 | I14: 2050 | J14: ○ | K14: ○
D15: 230155Z11117 | E15: 杉村NMS | F15: 5200 | H15: 1800 | I15: 3400 | J15: ○ | K15: ○
D16: 230155Z11121 | E16: 柳原・主税町NMS | F16: 4450 | H16: 1700 | I16: 2750 | J16: ○ | K16: ○
D17: 230155Z11130 | E17: 味鋺NAMS | F17: 7900 | H17: 3150 | I17: 4750 | J17: ○ | K17: ○
D18: 230155Z11131 | E18: 市内楠NM | F18: 2150 | H18: 850 | I18: 1300 | J18: ○ | K18: ○
D19: 230155Z11134 | E19: 如意NMS | F19: 3500 | H19: 1350 | I19: 2150 | J19: ○ | K19: ○
D20: 230155Z11133 | E20: 喜惣治NM | F20: 3700 | H20: 1400 | I20: 2300 | J20: ○ | K20: ○
E48: =CONCATENATE(FIXED(COUNTA(E5:E47),0,0)," 店") -> 16 店 | F48: =SUM(F5:F47) -> 65500 | G48: =SUM(G5:G47) -> 0 | H48: =SUM(H5:H47) -> 25250 | I48: =SUM(I5:I47) -> 40250
A49: 2026年前期（12月1日以降） | K49: ㈱中日総合サービス

Sheet 千種区・名東区
A1: 折込日 | E1: 広告主 | H1: サイズ
E2: チラシ銘柄 | H2: 部数 | I2: =SUM(A6,A27) -> 0
K3: ※2025年12月は第2金曜日、2026年5月は第4金曜日のみの実施となります。
A4: 地区 | D4: 店名 | F4: 折込プラス部数 | G4: 依頼部数 | H4: 朝刊折込部数 | I4: 未購読部数 | J4: 第2金曜日 | K4: 第4金曜日
A5: 千種区 | D5: 230105Z01103 | E5: 古井ノ坂NMS | F5: 3600 | H5: 1200 | I5: =F5-H5 -> 2400 | J5: ○ | K5: ○
A6: =SUM(G24) -> 0 | B6: ／ | C6: =SUM(F24) -> 58900 | D6: 230105Z01104 | E6: 今池NMS | F6: 6500 | H6: 2050 | I6: 4450 | J6: ○ | K6: ○
D7: 230105Z01105 | E7: 内山NMS | F7: 4000 | H7: 1350 | I7: 2650 | J7: ○ | K7: ○
D8: 230105Z01107 | E8: 萱場NMS | F8: 6100 | H8: 2150 | I8: 3950 | J8: ○ | K8: ○
D9: 230105Z01110 | E9: 丸山NMS | F9: 8050 | H9: 2750 | I9: 5300 | J9: ○ | K9: ○
D10: 230105Z01113 | E10: 天満NMS | F10: 4950 | H10: 2150 | I10: 2800 | J10: ○ | K10: ○
D11: 230105Z01114 | E11: 東山NMS | F11: 8400 | H11: 2750 | I11: 5650 | J11: ○ | K11: ○
D12: 230105Z01116 | E12: 覚王山NMS | F12: 5000 | H12: 1950 | I12: 3050 | J12: ○ | K12: ○
D13: 230105Z01117 | E13: 自由ヶ丘NMS | F13: 3950 | H13: 1650 | I13: 2300 | J13: ○ | K13: ○
D14: 230105Z01118 | E14: 千種星ヶ丘NMS | F14: 2250 | H14: 900 | I14: 1350 | J14: ○ | K14: ○
D15: 230105Z01119 | E15: 汁谷NMS | F15: 6100 | H15: 2750 | I15: 3350 | J15: ○ | K15: ○
E24: =CONCATENATE(FIXED(COUNTA(E5:E23),0,0)," 店") -> 11 店 | F24: =SUM(F5:F23) -> 58900 | G24: =SUM(G5:G23) -> 0 | H24: =SUM(H5:H23) -> 21650 | I24: =SUM(I5:I23) -> 37250
A26: 名東区 | D26: 230110Z02101 | E26: 名東星ヶ丘NM | F26: 3650 | H26: 1100 | I26: =F26-H26 -> 2550 | J26: ○ | K26: ○
A27: =SUM(G48) -> 0 | B27: ／ | C27: =SUM(F48) -> 67500 | D27: 230110Z02102 | E27: 千種高校前NMS | F27: 5350 | H27: 1850 | I27: 3500 | J27: ○ | K27: ○
D28: 230110Z02105 | E28: 虹ヶ丘NMS | F28: 5950 | H28: 1950 | I28: 4000 | J28: ○ | K28: ○
D29: 230110Z02107 | E29: 高針NMS | F29: 7750 | H29: 2550 | I29: 5200 | J29: ○ | K29: ○
D30: 230110Z02109 | E30: 極楽NMS | F30: 3300 | H30: 1650 | I30: =F30-H30 -> 1650 | J30: ○ | K30: ○
D31: 230110Z02110 | E31: 上社南NMS | F31: 5850 | H31: 2100 | I31: 3750 | J31: ○ | K31: ○
D32: 230110Z02111 | E32: 上社NMS | F32: 4850 | H32: 1750 | I32: 3100 | J32: ○ | K32: ○
D33: 230110Z02112 | E33: 本郷NMS | F33: 7100 | H33: 2350 | I33: 4750 | J33: ○ | K33: ○
D34: 230110Z02113 | E34: 藤が丘NMS | F34: 5250 | H34: 1900 | I34: 3350 | J34: ○ | K34: ○
D35: 230110Z02115 | E35: 猪子石台NMS | F35: 1750 | H35: 650 | I35: 1100 | J35: ○ | K35: ○
D36: 230110Z02117 | E36: 平和が丘NMS | F36: 4300 | H36: 2050 | I36: 2250 | J36: ○ | K36: ○
D37: 230110Z02118 | E37: 猪子石NMS | F37: 7200 | H37: 3000 | I37: 4200 | J37: ○ | K37: ○
D38: 230110Z02119 | E38: 森孝NMS | F38: 5200 | H38: 1850 | I38: 3350 | J38: ○ | K38: ○
E48: =CONCATENATE(FIXED(COUNTA(E26:E47),0,0)," 店") -> 13 店 | F48: =SUM(F26:F47) -> 67500 | G48: =SUM(G26:G47) -> 0 | H48: =SUM(H26:H47) -> 24750 | I48: =SUM(I26:I47) -> 42750
A49: 2026年前期（12月1日以降） | K49: ㈱中日総合サービス

Sheet 守山区・昭和区
A1: 折込日 | E1: 広告主 | H1: サイズ
E2: チラシ銘柄 | H2: 部数 | I2: =SUM(A6,A30) -> 0
K3: ※2025年12月は第2金曜日、2026年5月は第4金曜日のみの実施となります。
A4: 地区 | D4: 店名 | F4: 折込プラス部数 | G4: 依頼部数 | H4: 朝刊折込部数 | I4: 未購読部数 | J4: 第2金曜日 | K4: 第4金曜日
A5: 守山区 | D5: 230170Z01010 | E5: 大森NMS | F5: 12400 | H5: 5300 | I5: =F5-H5 -> 7100 | J5: ○ | K5: ○
A6: =SUM(G27) -> 0 | B6: ／ | C6: =SUM(F27) -> 60900 | D6: 230170Z01030 | E6: 小幡NMS | F6: 7200 | H6: 2950 | I6: 4250 | J6: ○ | K6: ○
D7: 230170Z01050 | E7: 志段味NM | F7: 3300 | H7: 1550 | I7: 1750 | J7: ○ | K7: ○
D8: 230170Z01060 | E8: 志段味西部NMS | F8: 10700 | H8: 3700 | I8: 7000 | J8: ○ | K8: ○
D9: 230170Z01090 | E9: 瀬古NMS | F9: 5350 | H9: 2150 | I9: 3200 | J9: ○ | K9: ○
D10: 230170Z01120 | E10: 守山南部NMS | F10: 7150 | H10: 3100 | I10: =F10-H10 -> 4050 | J10: ○ | K10: ○
D11: 230170Z01150 | E11: 新守山NMS | F11: 8200 | H11: 3400 | I11: 4800 | J11: ○ | K11: ○
D12: 230170Z01170 | E12: 喜多山NMS | F12: 6600 | H12: 2850 | I12: =F12-H12 -> 3750 | J12: ○ | K12: ○
E27: =CONCATENATE(FIXED(COUNTA(E5:E26),0,0)," 店") -> 8 店 | F27: =SUM(F5:F26) -> 60900 | G27: =SUM(G5:G26) -> 0 | H27: =SUM(H5:H26) -> 25000 | I27: =SUM(I5:I26) -> 35900
A29: 昭和区 | D29: 230115Z03104 | E29: 円上NMS | F29: 3200 | H29: 1400 | I29: =F29-H29 -> 1800 | J29: ○ | K29: ○
A30: =SUM(G48) -> 0 | B30: ／ | C30: =SUM(F48) -> 40400 | D30: 230115Z03106 | E30: 桜山NMS | F30: 3200 | H30: 1300 | I30: 1900 | J30: ○ | K30: ○
D31: 230115Z03108 | E31: 鶴舞NMS | F31: 5900 | H31: 2000 | I31: 3900 | J31: ○ | K31: ○
D32: 230115Z03109 | E32: 御器所NMS | F32: 6000 | H32: 2750 | I32: 3250 | J32: ○ | K32: ○
D33: 230115Z03110 | E33: 川名NMS | F33: 7650 | H33: 3050 | I33: 4600 | J33: ○ | K33: ○
D34: 230115Z03112 | E34: 山手通NMS | F34: 5900 | H34: 2400 | I34: 3500 | J34: ○ | K34: ○
D35: 230115Z03115 | E35: 滝子NMS | F35: 2850 | H35: 1100 | I35: 1750 | J35: ○ | K35: ○
D36: 230115Z03117 | E36: 川原通NMS | F36: 5700 | H36: 2350 | I36: 3350 | J36: ○ | K36: ○
E48: =CONCATENATE(FIXED(COUNTA(E29:E47),0,0)," 店") -> 8 店 | F48: =SUM(F29:F47) -> 40400 | G48: =SUM(G29:G47) -> 0 | H48: =SUM(H29:H47) -> 16350 | I48: =SUM(I29:I47) -> 24050
A49: 2026年前期（12月1日以降） | K49: ㈱中日総合サービス

Sheet 天白区・瑞穂区
A1: 折込日 | E1: 広告主 | H1: サイズ
E2: チラシ銘柄 | H2: 部数 | I2: =SUM(A6,A27) -> 0
K3: ※2025年12月は第2金曜日、2026年5月は第4金曜日のみの実施となります。
A4: 地区 | D4: 店名 | F4: 折込プラス部数 | G4: 依頼部数 | H4: 朝刊折込部数 | I4: 未購読部数 | J4: 第2金曜日 | K4: 第4金曜日
A5: 天白区 | D5: 230175Z01005 | E5: 八事NMS | F5: 6500 | H5: 2850 | I5: =F5-H5 -> 3650 | J5: ○ | K5: ○
A6: =SUM(G24) -> 0 | B6: ／ | C6: =SUM(F24) -> 55150 | D6: 230175Z01010 | E6: 平針住宅NMS | F6: 2700 | H6: 1250 | I6: 1450 | J6: ○ | K6: ○
D7: 230175Z01020 | E7: 平針NMS | F7: 15000 | H7: 5700 | I7: 9300 | J7: ○ | K7: ○
D8: 230175Z01030 | E8: 植田NMS | F8: 7850 | H8: 3150 | I8: 4700 | J8: ○ | K8: ○
D9: 230175Z01040 | E9: 植田北部NMS | F9: 4300 | H9: 1900 | I9: 2400 | J9: ○ | K9: ○
D10: 230175Z01090 | E10: 野並NMS | F10: 5700 | H10: 2550 | I10: =F10-H10 -> 3150 | J10: ○ | K10: ○
D11: 230175Z01110 | E11: 黒石NMS | F11: 2800 | H11: 1450 | I11: 1350 | J11: ○ | K11: ○
D12: 230175Z01120 | E12: 一ツ山NMS | F12: 7000 | H12: 2650 | I12: 4350 | J12: ○ | K12: ○
D13: 230175Z01170 | E13: 梅が丘NMS | F13: 3300 | H13: 1500 | I13: =F13-H13 -> 1800 | J13: ○ | K13: ○
E24: =CONCATENATE(FIXED(COUNTA(E5:E23),0,0)," 店") -> 9 店 | F24: =SUM(F5:F23) -> 55150 | G24: =SUM(G5:G23) -> 0 | H24: =SUM(H5:H23) -> 23000 | I24: =SUM(I5:I23) -> 32150
A26: 瑞穂区 | D26: 230120Z04101 | E26: 高田NMS | F26: 4550 | H26: 2150 | I26: =F26-H26 -> 2400 | J26: ○ | K26: ○
A27: =SUM(G48) -> 0 | B27: ／ | C27: =SUM(F48) -> 35700 | D27: 230120Z04102 | E27: 井戸田NS | F27: 2900 | H27: 1100 | I27: 1800 | J27: ○ | K27: ○
D28: 230120Z04103 | E28: 堀田NMS | F28: 6200 | H28: 2450 | I28: 3750 | J28: ○ | K28: ○
D29: 230120Z04104 | E29: 瑞穂NMS | F29: 6000 | H29: 2500 | I29: 3500 | J29: ○ | K29: ○
D30: 230120Z04107 | E30: 昭和高校前NMS | F30: 3150 | H30: 1450 | I30: =F30-H30 -> 1700 | J30: ○ | K30: ○
D31: 230120Z04109 | E31: 汐路NMS | F31: 2900 | H31: 1450 | I31: 1450 | J31: ○ | K31: ○
D32: 230120Z04110 | E32: 石川橋NMS | F32: 3200 | H32: 1700 | I32: 1500 | J32: ○ | K32: ○
D33: 230120Z04111 | E33: 中根NS | F33: 3800 | H33: 1750 | I33: 2050 | J33: ○ | K33: ○
D34: 230120Z04112 | E34: 市内弥富NMS | F34: 3000 | H34: 1350 | I34: 1650 | J34: ○ | K34: ○
E48: =CONCATENATE(FIXED(COUNTA(E26:E47),0,0)," 店") -> 9 店 | F48: =SUM(F26:F47) -> 35700 | G48: =SUM(G26:G47) -> 0 | H48: =SUM(H26:H47) -> 15900 | I48: =SUM(I26:I47) -> 19800
A49: 2026年前期（12月1日以降） | K49: ㈱中日総合サービス

Sheet 南区
A1: 折込日 | E1: 広告主 | H1: サイズ
E2: チラシ銘柄 | H2: 部数 | I2: =SUM(A6) -> 0
K3: ※2025年12月は第2金曜日、2026年5月は第4金曜日のみの実施となります。
A4: 地区 | D4: 店名 | F4: 折込プラス部数 | G4: 依頼部数 | H4: 朝刊折込部数 | I4: 未購読部数 | J4: 第2金曜日 | K4: 第4金曜日
A5: 南区 | D5: 230125Z05102 | E5: 柴田NMS | F5: 5800 | H5: 2150 | I5: =F5-H5 -> 3650 | J5: ○ | K5: ○
A6: =SUM(G48) -> 0 | B6: ／ | C6: =SUM(F48) -> 54800 | D6: 230125Z05105 | E6: 星崎NM | F6: 3400 | H6: 1350 | I6: 2050 | J6: ○ | K6: ○
D7: 230125Z05106 | E7: 鳴尾NM | F7: 3500 | H7: 1250 | I7: 2250 | J7: ○ | K7: ○
D8: 230125Z05108 | E8: 明治NMS | F8: 4300 | H8: 2000 | I8: 2300 | J8: ○ | K8: ○
D9: 230125Z05109 | E9: 市内豊田NMS | F9: 4950 | H9: 2000 | I9: 2950 | J9: ○ | K9: ○
D10: 230125Z05110 | E10: 南陽通NMS | F10: 6500 | H10: 2200 | I10: 4300 | J10: ○ | K10: ○
D11: 230125Z05111 | E11: 大江NMS | F11: 3000 | H11: 1200 | I11: 1800 | J11: ○ | K11: ○
D12: 230125Z05114 | E12: 笠寺NMS | F12: 5600 | H12: 2350 | I12: 3250 | J12: ○ | K12: ○
D13: 230125Z05118 | E13: さくらNMS | F13: 3800 | H13: 1650 | I13: 2150 | J13: ○ | K13: ○
D14: 230125Z05119 | E14: 呼続NS | F14: 3400 | H14: 1550 | I14: 1850 | J14: ○ | K14: ○
D15: 230125Z05120 | E15: 大磯NMS | F15: 4600 | H15: 2000 | I15: 2600 | J15: ○ | K15: ○
D16: 230125Z05121 | E16: 桜田NMS | F16: 4100 | H16: 1600 | I16: 2500 | J16: ○ | K16: ○
D17: 230125Z05122 | E17: ゆたかNMS | F17: 1850 | H17: 850 | I17: 1000 | J17: ○ | K17: ○
E48: =CONCATENATE(FIXED(COUNTA(E5:E47),0,0)," 店") -> 13 店 | F48: =SUM(F5:F47) -> 54800 | G48: =SUM(G5:G47) -> 0 | H48: =SUM(H5:H47) -> 22150 | I48: =SUM(I5:I47) -> 32650
A49: 2026年前期（12月1日以降） | K49: ㈱中日総合サービス

Sheet 緑区
A1: 折込日 | E1: 広告主 | H1: サイズ
E2: チラシ銘柄 | H2: 部数 | I2: =SUM(A6) -> 0
K3: ※2025年12月は第2金曜日、2026年5月は第4金曜日のみの実施となります。
A4: 地区 | D4: 店名 | F4: 折込プラス部数 | G4: 依頼部数 | H4: 朝刊折込部数 | I4: 未購読部数 | J4: 第2金曜日 | K4: 第4金曜日
A5: 緑区 | D5: 230180Z01010 | E5: なるみ砦NS | F5: 3800 | H5: 2000 | I5: =F5-H5 -> 1800 | J5: ○ | K5: ○
A6: =SUM(G48) -> 0 | B6: ／ | C6: =SUM(F48) -> 72200 | D6: 230180Z01030 | E6: 鳴海N | F6: 4450 | H6: 1800 | I6: 2650 | J6: ○ | K6: ○
D7: 230180Z01040 | E7: 大高NS | F7: 4300 | H7: 2450 | I7: 1850 | J7: ○ | K7: ○
D8: 230180Z01050 | E8: 大高南NS | F8: 2300 | H8: 1000 | I8: 1300 | J8: ○ | K8: ○
D9: 230180Z01070 | E9: 鳴子NS | F9: 8400 | H9: 3500 | I9: 4900 | J9: ○ | K9: ○
D10: 230180Z01080 | E10: 平手NS | F10: 2950 | H10: 1450 | I10: 1500 | J10: ○ | K10: ○
D11: 230180Z01100 | E11: 滝の水NS | F11: 4650 | H11: 2250 | I11: 2400 | J11: ○ | K11: ○
D12: 230180Z01110 | E12: みどり台NS | F12: 5200 | H12: 2950 | I12: 2250 | J12: ○ | K12: ○
D13: 230180Z01140 | E13: 左京山NS | F13: 6500 | H13: 2800 | I13: 3700 | J13: ○ | K13: ○
D14: 230180Z01150 | E14: 有松NMS | F14: 3900 | H14: 1850 | I14: 2050 | J14: ○ | K14: ○
D15: 230180Z01160 | E15: 有松南NM | F15: 1850 | H15: 1050 | I15: 800 | J15: ○ | K15: ○
D16: 230180Z01180 | E16: 鳴海住宅NS | F16: 3050 | H16: 1650 | I16: 1400 | J16: ○ | K16: ○
D17: 230180Z01190 | E17: 競馬場前NS | F17: 3150 | H17: 1450 | I17: 1700 | J17: ○ | K17: ○
D18: 230180Z01200 | E18: 神ノ倉NMS | F18: 3600 | H18: 2000 | I18: 1600 | J18: ○ | K18: ○
D19: 230180Z01201 | E19: 神ノ倉東部NMS | F19: 2250 | H19: 1150 | I19: 1100 | J19: ○ | K19: ○
D20: 230180Z01210 | E20: みどり桃山NMS | F20: 2000 | H20: 1000 | I20: 1000 | J20: ○ | K20: ○
D21: 230180Z01220 | E21: みどり徳重N | F21: 2800 | H21: 1600 | I21: 1200 | J21: ○ | K21: ○
D22: 230180Z01230 | E22: 鳴海大清水NS | F22: 2900 | H22: 1550 | I22: 1350 | J22: ○ | K22: ○
D23: 230180Z01240 | E23: 桶狭間NM | F23: 2250 | H23: 1000 | I23: 1250 | J23: ○ | K23: ○
D24: 230180Z01250 | E24: みどり篭山N | F24: 1900 | H24: 1050 | I24: 850 | J24: ○ | K24: ○
E48: =CONCATENATE(FIXED(COUNTA(E5:E47),0,0)," 店") -> 20 店 | F48: =SUM(F5:F47) -> 72200 | G48: =SUM(G5:G47) -> 0 | H48: =SUM(H5:H47) -> 35550 | I48: =SUM(I5:I47) -> 36650
A49: 2026年前期（12月1日以降） | K49: ㈱中日総合サービス

Sheet 熱田区・港区
A1: 折込日 | E1: 広告主 | H1: サイズ
E2: チラシ銘柄 | H2: 部数 | I2: =SUM(A6,A23) -> 0
K3: ※2025年12月は第2金曜日、2026年5月は第4金曜日のみの実施となります。
A4: 地区 | D4: 店名 | F4: 折込プラス部数 | G4: 依頼部数 | H4: 朝刊折込部数 | I4: 未購読部数 | J4: 第2金曜日 | K4: 第4金曜日
A5: 熱田区 | D5: 230130Z06101 | E5: 沢上NMS | F5: 5800 | H5: 2700 | I5: =F5-H5 -> 3100 | J5: ○ | K5: ○
A6: =SUM(G20) -> 0 | B6: ／ | C6: =SUM(F20) -> 22950 | D6: 230130Z06102 | E6: 熱田NMS | F6: 3800 | H6: 1600 | I6: =F6-H6 -> 2200 | J6: ○ | K6: ○
D7: 230130Z06104 | E7: 日比野NMS | F7: 7600 | H7: 3100 | I7: =F7-H7 -> 4500 | J7: ○ | K7: ○
D8: 230130Z06106 | E8: 六番町NMS | F8: 2400 | H8: 950 | I8: =F8-H8 -> 1450 | J8: ○ | K8: ○
D9: 230130Z06105 | E9: 船方NMS | F9: 3350 | H9: 1550 | I9: =F9-H9 -> 1800 | J9: ○ | K9: ○
E20: =CONCATENATE(FIXED(COUNTA(E5:E19),0,0)," 店") -> 5 店 | F20: =SUM(F5:F19) -> 22950 | G20: =SUM(G5:G19) -> 0 | H20: =SUM(H5:H19) -> 9900 | I20: =SUM(I5:I19) -> 13050
A22: 港区 | D22: 230135Z07101 | E22: 千年NMS | F22: 4150 | H22: 1800 | I22: =F22-H22 -> 2350 | J22: ○ | K22: ○
A23: =SUM(G48) -> 0 | B23: ／ | C23: =SUM(F48) -> 47600 | D23: 230135Z07102 | E23: 名港NAMS | F23: 4450 | H23: 1650 | I23: 2800 | J23: ○ | K23: ○
D24: 230135Z07104 | E24: 東海橋NAMS | F24: 2600 | H24: 1350 | I24: 1250 | J24: ○ | K24: ○
D25: 230135Z07105 | E25: 小碓NM | F25: 5600 | H25: 2100 | I25: 3500 | J25: ○ | K25: ○
D26: 230135Z07107 | E26: 稲永NAMS | F26: 4900 | H26: 1450 | I26: 3450 | J26: ○ | K26: ○
D27: 230135Z07109 | E27: 港西NAM | F27: 3400 | H27: 1300 | I27: 2100 | J27: ○ | K27: ○
D28: 230135Z07110 | E28: 大手NAMS | F28: 4400 | H28: 1750 | I28: 2650 | J28: ○ | K28: ○
D29: 230135Z07112 | E29: 明徳NM | F29: 3700 | H29: 1400 | I29: 2300 | J29: ○ | K29: ○
D30: 230135Z07113 | E30: 当知NM | F30: 2650 | H30: 950 | I30: 1700 | J30: ○ | K30: ○
D31: 230135Z07114 | E31: 市内南陽NAMS | F31: 5300 | H31: 2900 | I31: 2400 | J31: ○ | K31: ○
D32: 230135Z07115 | E32: 南陽西部NAMS | F32: 3400 | H32: 1400 | I32: 2000 | J32: ○ | K32: ○
D33: 230135Z07116 | E33: 惟信NM | F33: 3050 | H33: 1200 | I33: 1850 | J33: ○ | K33: ○
E48: =CONCATENATE(FIXED(COUNTA(E22:E47),0,0)," 店") -> 12 店 | F48: =SUM(F22:F47) -> 47600 | G48: =SUM(G22:G47) -> 0 | H48: =SUM(H22:H47) -> 19250 | I48: =SUM(I22:I47) -> 28350
A49: 2026年前期（12月1日以降） | K49: ㈱中日総合サービス

Sheet 中川区
A1: 折込日 | E1: 広告主 | H1: サイズ
E2: チラシ銘柄 | H2: 部数 | I2: =SUM(A6) -> 0
K3: ※2025年12月は第2金曜日、2026年5月は第4金曜日のみの実施となります。
A4: 地区 | D4: 店名 | F4: 折込プラス部数 | G4: 依頼部数 | H4: 朝刊折込部数 | I4: 未購読部数 | J4: 第2金曜日 | K4: 第4金曜日
A5: 中川区 | D5: 230140Z08101 | E5: 昭和橋NMS | F5: 5250 | H5: 2250 | I5: =F5-H5 -> 3000 | J5: ○ | K5: ○
A6: =SUM(G48) -> 0 | B6: ／ | C6: =SUM(F48) -> 75050 | D6: 230140Z08102 | E6: 五女子NMS | F6: 3550 | H6: 1400 | I6: 2150 | J6: ○ | K6: ○
D7: 230140Z08104 | E7: 大須・水主町NMS | F7: 2200 | H7: 1200 | I7: =F7-H7 -> 1000 | J7: ○ | K7: ○
D8: 230140Z08105 | E8: 篠原NM | F8: 3950 | H8: 1750 | I8: 2200 | J8: ○ | K8: ○
D9: 230140Z08106 | E9: 八幡NMS | F9: 5000 | H9: 2350 | I9: 2650 | J9: ○ | K9: ○
D10: 230140Z08110 | E10: 太平通NMS | F10: 4800 | H10: 1950 | I10: 2850 | J10: ○ | K10: ○
D11: 230140Z08111 | E11: 中川常磐NMS | F11: 6450 | H11: 2600 | I11: 3850 | J11: ○ | K11: ○
D12: 230140Z08112 | E12: 東起NM | F12: 2500 | H12: 1050 | I12: 1450 | J12: ○ | K12: ○
D13: 230140Z08115 | E13: 正色NAMS | F13: 3200 | H13: 1650 | I13: 1550 | J13: ○ | K13: ○
D14: 230140Z08116 | E14: 野田NMS | F14: 4100 | H14: 1900 | I14: 2200 | J14: ○ | K14: ○
D15: 230140Z08118 | E15: 荒子NMS | F15: 3300 | H15: 1500 | I15: 1800 | J15: ○ | K15: ○
D16: 230140Z08120 | E16: 高杉NMS | F16: 3250 | H16: 1300 | I16: 1950 | J16: ○ | K16: ○
D17: 230140Z08122 | E17: 中郷NMS | F17: 3650 | H17: 1700 | I17: 1950 | J17: ○ | K17: ○
D18: 230140Z08131 | E18: 春田NMS | F18: 3500 | H18: 1400 | I18: 2100 | J18: ○ | K18: ○
D19: 230140Z08132 | E19: 戸田NMS | F19: 2950 | H19: 1400 | I19: 1550 | J19: ○ | K19: ○
D20: 230140Z08133 | E20: 豊治NAMS | F20: 8000 | H20: 2700 | I20: 5300 | J20: ○ | K20: ○
D21: 230140Z08136 | E21: 千音寺NMS | F21: 4850 | H21: 1900 | I21: 2950 | J21: ○ | K21: ○
D22: 230140Z08137 | E22: とみた吉津NMS | F22: 2700 | H22: 950 | I22: =F22-H22 -> 1750 | J22: ○ | K22: ○
D23: 230140Z08138 | E23: 万場NMS | F23: 1850 | H23: 800 | I23: =F23-H23 -> 1050 | J23: ○ | K23: ○
E48: =CONCATENATE(FIXED(COUNTA(E5:E47),0,0)," 店") -> 19 店 | F48: =SUM(F5:F47) -> 75050 | G48: =SUM(G5:G47) -> 0 | H48: =SUM(H5:H47) -> 31750 | I48: =SUM(I5:I47) -> 43300
A49: 2026年前期（12月1日以降） | K49: ㈱中日総合サービス

Sheet 尾張地区
A1: 折込日 | C1: 広告主 | G1: サイズ
C2: チラシ銘柄 | G2: 部数 | H2: =SUM(F39) -> 0
A3: 尾張地区 | I3: 2026年前期（12月1日以降）
A4: 地 区 | C4: 折込プラス部数 | E4: 依頼部数 | G4: 朝刊折込部数 | I4: 未購読部数
A5: 一宮市 | C5: =一宮市!F48 -> 126500 | E5: =一宮市!G48 -> 0 | F5: =IFERROR(SUM(E5)," ") -> 0 | G5: =一宮市!H48 -> 57650 | I5: =一宮市!I48 -> 68850
A6: 稲沢市 | C6: =稲沢市・津島市・愛西市!F26 -> 51200 | E6: =稲沢市・津島市・愛西市!G26 -> 0 | F6: 0 | G6: =稲沢市・津島市・愛西市!H26 -> 24100 | I6: =稲沢市・津島市・愛西市!I26 -> 27100
A7: 津島市 | C7: =稲沢市・津島市・愛西市!F37 -> 25700 | E7: =稲沢市・津島市・愛西市!G37 -> 0 | F7: 0 | G7: =稲沢市・津島市・愛西市!H37 -> 11650 | I7: =稲沢市・津島市・愛西市!I37 -> 14050
A8: 愛西市 | C8: =稲沢市・津島市・愛西市!F48 -> 21550 | E8: =稲沢市・津島市・愛西市!G48 -> 0 | F8: 0 | G8: =稲沢市・津島市・愛西市!H48 -> 10700 | I8: =稲沢市・津島市・愛西市!I48 -> 10850
A9: 弥富市 | C9: =弥富市・あま市・海部郡!F14 -> 17250 | E9: =弥富市・あま市・海部郡!G14 -> 0 | F9: 0 | G9: =弥富市・あま市・海部郡!H14 -> 7550 | I9: =弥富市・あま市・海部郡!I14 -> 9700
A10: あま市 | C10: =弥富市・あま市・海部郡!F29 -> 29550 | E10: =弥富市・あま市・海部郡!G29 -> 0 | F10: 0 | G10: =弥富市・あま市・海部郡!H29 -> 12750 | I10: =弥富市・あま市・海部郡!I29 -> 16800
A11: 海部郡 | C11: =弥富市・あま市・海部郡!F48 -> 28650 | E11: =弥富市・あま市・海部郡!G48 -> 0 | F11: 0 | G11: =弥富市・あま市・海部郡!H48 -> 11150 | I11: =弥富市・あま市・海部郡!I48 -> 17500
A12: 清須市 | C12: =清須市・北名古屋市・西春日井郡・岩倉市!F16 -> 30200 | E12: =清須市・北名古屋市・西春日井郡・岩倉市!G16 -> 0 | F12: 0 | G12: =清須市・北名古屋市・西春日井郡・岩倉市!H16 -> 11050 | I12: =清須市・北名古屋市・西春日井郡・岩倉市!I16 -> 19150
A13: 北名古屋市 | C13: =清須市・北名古屋市・西春日井郡・岩倉市!F26 -> 33200 | E13: =清須市・北名古屋市・西春日井郡・岩倉市!G26 -> 0 | F13: 0 | G13: =清須市・北名古屋市・西春日井郡・岩倉市!H26 -> 12900 | I13: =清須市・北名古屋市・西春日井郡・岩倉市!I26 -> 20300
A14: 西春日井郡 | C14: =清須市・北名古屋市・西春日井郡・岩倉市!F35 -> 5850 | E14: =清須市・北名古屋市・西春日井郡・岩倉市!G35 -> 0 | F14: 0 | G14: =清須市・北名古屋市・西春日井郡・岩倉市!H35 -> 2200 | I14: =清須市・北名古屋市・西春日井郡・岩倉市!I35 -> 3650
A15: 岩倉市 | C15: =清須市・北名古屋市・西春日井郡・岩倉市!F48 -> 16950 | E15: =清須市・北名古屋市・西春日井郡・岩倉市!G48 -> 0 | F15: 0 | G15: =清須市・北名古屋市・西春日井郡・岩倉市!H48 -> 6600 | I15: =清須市・北名古屋市・西春日井郡・岩倉市!I48 -> 10350
A16: 江南市 | C16: =江南市・丹羽郡・犬山市!F20 -> 34300 | E16: =江南市・丹羽郡・犬山市!G20 -> 0 | F16: 0 | G16: =江南市・丹羽郡・犬山市!H20 -> 15800 | I16: =江南市・丹羽郡・犬山市!I20 -> 18500
A17: 丹羽郡 | C17: =江南市・丹羽郡・犬山市!F33 -> 20900 | E17: =江南市・丹羽郡・犬山市!G33 -> 0 | F17: 0 | G17: =江南市・丹羽郡・犬山市!H33 -> 9500 | I17: =江南市・丹羽郡・犬山市!I33 -> 11400
A18: 犬山市 | C18: =江南市・丹羽郡・犬山市!F48 -> 24850 | E18: =江南市・丹羽郡・犬山市!G48 -> 0 | F18: 0 | G18: =江南市・丹羽郡・犬山市!H48 -> 12150 | I18: =江南市・丹羽郡・犬山市!I48 -> 12700
A19: 小牧市 | C19: =小牧市!F48 -> 54700 | E19: =小牧市!G48 -> 0 | F19: 0 | G19: =小牧市!H48 -> 23700 | I19: =小牧市!I48 -> 31000
A20: 春日井市 | C20: =春日井市!F48 -> 114450 | E20: =春日井市!G48 -> 0 | F20: 0 | G20: =春日井市!H48 -> 47350 | I20: =春日井市!I48 -> 67100
A21: 瀬戸市 | C21: =瀬戸市・尾張旭市!F30 -> 44800 | E21: =瀬戸市・尾張旭市!G30 -> 0 | F21: 0 | G21: =瀬戸市・尾張旭市!H30 -> 21250 | I21: =瀬戸市・尾張旭市!I30 -> 23550
A22: 尾張旭市 | C22: =瀬戸市・尾張旭市!F48 -> 28750 | E22: =瀬戸市・尾張旭市!G48 -> 0 | F22: 0 | G22: =瀬戸市・尾張旭市!H48 -> 12950 | I22: =瀬戸市・尾張旭市!I48 -> 15800
A23: 日進市 | C23: =日進市・豊明市!F23 -> 26550 | E23: =日進市・豊明市!G23 -> 0 | F23: 0 | G23: =日進市・豊明市!H23 -> 12000 | I23: =日進市・豊明市!I23 -> 14550
A24: 豊明市 | C24: =日進市・豊明市!F48 -> 23900 | E24: =日進市・豊明市!G48 -> 0 | F24: 0 | G24: =日進市・豊明市!H48 -> 10450 | I24: =日進市・豊明市!I48 -> 13450
A25: 長久手市 | C25: =長久手市・愛知郡・大府市!F17 -> 20850 | E25: =長久手市・愛知郡・大府市!G17 -> 0 | F25: 0 | G25: =長久手市・愛知郡・大府市!H17 -> 6950 | I25: =長久手市・愛知郡・大府市!I17 -> 13900
A26: 愛知郡 | C26: =長久手市・愛知郡・大府市!F31 -> 14000 | E26: =長久手市・愛知郡・大府市!G31 -> 0 | F26: 0 | G26: =長久手市・愛知郡・大府市!H31 -> 6400 | I26: =長久手市・愛知郡・大府市!I31 -> 7600
A27: 大府市 | C27: =長久手市・愛知郡・大府市!F48 -> 34800 | E27: =長久手市・愛知郡・大府市!G48 -> 0 | F27: 0 | G27: =長久手市・愛知郡・大府市!H48 -> 13350 | I27: =長久手市・愛知郡・大府市!I48 -> 21450
A28: 東海市 | C28: =東海市・知多市!F26 -> 41200 | E28: =東海市・知多市!G26 -> 0 | F28: 0 | G28: =東海市・知多市!H26 -> 14850 | I28: =東海市・知多市!I26 -> 26350
A29: 知多市 | C29: =東海市・知多市!F48 -> 32450 | E29: =東海市・知多市!G48 -> 0 | F29: 0 | G29: =東海市・知多市!H48 -> 13250 | I29: =東海市・知多市!I48 -> 19200
A30: 半田市 | C30: =半田市・常滑市!F24 -> 42150 | E30: =半田市・常滑市!G24 -> 0 | F30: 0 | G30: =半田市・常滑市!H24 -> 18250 | I30: =半田市・常滑市!I24 -> 23900
A31: 常滑市 | C31: =半田市・常滑市!F48 -> 12400 | E31: =半田市・常滑市!G48 -> 0 | F31: 0 | G31: =半田市・常滑市!H48 -> 9050 | I31: =半田市・常滑市!I48 -> 3350
A32: 知多郡 | C32: =知多郡!F48 -> 38150 | E32: =知多郡!G48 -> 0 | F32: 0 | G32: =知多郡!H48 -> 25300 | I32: =知多郡!I48 -> 12850
A33: 合計 | C33: =SUM(C5:C32) -> 995800 | F33: =SUM(F5:F32) -> 0 | G33: =SUM(G5:G32) -> 440850 | I33: =SUM(I5:I32) -> 554950
A35: 愛知県 | C35: 折込プラス部数 | E35: 依頼部数 | G35: 朝刊折込部数 | I35: 未購読部数
A36: 名古屋市 | C36: =SUM(名古屋市!C24) -> 798000 | E36: =IFERROR(名古屋市!F24," ") -> 0 | F36: =E36 -> 0 | G36: =SUM(名古屋市!G24) -> 337400 | I36: =SUM(名古屋市!I24) -> 460600
A37: 尾張地区 | C37: =SUM(C33) -> 995800 | F37: =F33 -> 0 | G37: =SUM(G33) -> 440850 | I37: =SUM(I33) -> 554950
A38: 三河地区 | C38: =SUM(三河地区!C26) -> 791600 | E38: =IFERROR(三河地区!F26," ") -> 0 | F38: =E38 -> 0 | G38: =SUM(三河地区!G26) -> 345900 | I38: =SUM(三河地区!I26) -> 445700
A39: 合計 | C39: =SUM(C36:C38) -> 2585400 | E39: =SUM(E36:F38) -> 0 | F39: =SUM(F36:F38) -> 0 | G39: =SUM(G36:G38) -> 1124150 | I39: =SUM(I36:I38) -> 1461250
I40: ㈱中日総合サービス

Sheet 一宮市
A1: 折込日 | E1: 広告主 | H1: サイズ
E2: チラシ銘柄 | H2: 部数 | I2: =SUM(A6) -> 0
K3: ※2025年12月は第2金曜日、2026年5月は第4金曜日のみの実施となります。
A4: 地区 | D4: 店名 | F4: 折込プラス部数 | G4: 依頼部数 | H4: 朝刊折込部数 | I4: 未購読部数 | J4: 第2金曜日 | K4: 第4金曜日
A5: 一宮市 | D5: 230320Z01020 | E5: 一宮南部NS | F5: 18200 | H5: 6750 | I5: =F5-H5 -> 11450 | J5: ○ | K5: ○
A6: =SUM(G48) -> 0 | B6: ／ | C6: =SUM(F48) -> 126500 | D6: 230320Z01040 | E6: 一宮北部NS | F6: 14100 | H6: 6050 | I6: =F6-H6 -> 8050 | J6: ○ | K6: ○
D7: 230320Z01060 | E7: 一宮浅井NMS | F7: 4900 | H7: 2450 | I7: 2450 | J7: ○ | K7: ○
D8: 230320Z01070 | E8: 浅井北部NM | F8: 1100 | H8: 800 | I8: 300 | J8: ○ | K8: ○
D9: 230320Z01200 | E9: 一宮東部NS | F9: 2300 | H9: 1300 | I9: 1000 | J9: ○ | K9: ○
D10: 230320Z01160 | E10: 千秋NMS | F10: 3150 | H10: 1900 | I10: 1250 | J10: ○ | K10: ○
D11: 230320Z01080 | E11: 一宮瀬時NMS | F11: 2700 | H11: 1350 | I11: 1350 | J11: ○ | K11: ○
D12: 230320Z01210 | E12: 一宮春明NM | F12: 2050 | H12: 1050 | I12: 1000 | J12: ○ | K12: ○
D13: 230320Z01030 | E13: 一宮西部NS | F13: 12600 | H13: 4350 | I13: 8250 | J13: ○ | K13: ○
D14: 230320Z01150 | E14: 一宮萩原NMS | F14: 4850 | H14: 2750 | I14: 2100 | J14: ○ | K14: ○
D15: 230320Z01110 | E15: 今伊勢西NS | F15: 4400 | H15: 2000 | I15: 2400 | J15: ○ | K15: ○
D16: 230320Z01180 | E16: 苅安賀NS | F16: 3500 | H16: 1650 | I16: 1850 | J16: ○ | K16: ○
D17: 230320Z01220 | E17: 戸塚西御堂NMS | F17: 3450 | H17: 2050 | I17: 1400 | J17: ○ | K17: ○
D18: 230320Z01090 | E18: 今伊勢南部NS | F18: 2200 | H18: 950 | I18: 1250 | J18: ○ | K18: ○
D19: 230320Z01170 | E19: 一宮大毛NS | F19: 3500 | H19: 1950 | I19: 1550 | J19: ○ | K19: ○
D20: 230320Z01100 | E20: 今伊勢北部NS | F20: 4450 | H20: 2000 | I20: 2450 | J20: ○ | K20: ○
D21: 230320Z01190 | E21: 一宮北方NS | F21: 2350 | H21: 1400 | I21: 950 | J21: ○ | K21: ○
D22: 230320Z01250 | E22: 一宮起NS | F22: 6250 | H22: 2750 | I22: 3500 | J22: ○ | K22: ○
D23: 230320Z01270 | E23: 大和三条NS | F23: 11000 | H23: 4400 | I23: 6600 | J23: ○ | K23: ○
D24: 230320Z01290 | E24: 一宮尾西NMS | F24: 3700 | H24: 2200 | I24: 1500 | J24: ○ | K24: ○
D25: 230320Z01300 | E25: 木曽川(宇佐見)NS | F25: 5350 | H25: 2350 | I25: 3000 | J25: ○ | K25: ○
D26: 230320Z01310 | E26: 木曽川(大塚)N | F26: 4700 | H26: 2600 | I26: 2100 | J26: ○ | K26: ○
D27: 230320Z01320 | E27: 玉ノ井奥町NS | F27: 5700 | H27: 2600 | I27: 3100 | J27: ○ | K27: ○
E48: =CONCATENATE(FIXED(COUNTA(E5:E47),0,0)," 店") -> 23 店 | F48: =SUM(F5:F47) -> 126500 | G48: =SUM(G5:G47) -> 0 | H48: =SUM(H5:H47) -> 57650 | I48: =SUM(I5:I47) -> 68850
A49: 2026年前期（12月1日以降） | K49: ㈱中日総合サービス

Sheet 稲沢市・津島市・愛西市
A1: 折込日 | E1: 広告主 | H1: サイズ
E2: チラシ銘柄 | H2: 部数 | I2: =SUM(A6,A29,A40) -> 0
K3: ※2025年12月は第2金曜日、2026年5月は第4金曜日のみの実施となります。
A4: 地区 | D4: 店名 | F4: 折込プラス部数 | G4: 依頼部数 | H4: 朝刊折込部数 | I4: 未購読部数 | J4: 第2金曜日 | K4: 第4金曜日
A5: 稲沢市 | D5: 230340Z01010 | E5: 稲沢国府宮NS | F5: 7700 | H5: 2450 | I5: =F5-H5 -> 5250 | J5: ○ | K5: ○
A6: =SUM(G26) -> 0 | B6: ／ | C6: =SUM(F26) -> 51200 | D6: 230340Z01080 | E6: 稲沢大里N | F6: 2450 | H6: 1200 | I6: =F6-H6 -> 1250 | J6: ○ | K6: ○
D7: 230340Z01030 | E7: 稲沢下津NS | F7: 3600 | H7: 1700 | I7: =F7-H7 -> 1900 | J7: ○ | K7: ○
D8: 230340Z01120 | E8: 下津北部N | F8: 3100 | H8: 1200 | I8: =F8-H8 -> 1900 | J8: ○ | K8: ○
D9: 230340Z01050 | E9: 稲沢西部NS | F9: 4100 | H9: 2100 | I9: =F9-H9 -> 2000 | J9: ○ | K9: ○
D10: 230340Z01060 | E10: 稲沢松清NS | F10: 6350 | H10: 3250 | I10: 3100 | J10: ○ | K10: ○
D11: 230340Z01070 | E11: 稲沢高御堂N | F11: 4500 | H11: 1800 | I11: 2700 | J11: ○ | K11: ○
D12: 230340Z01040 | E12: 稲沢南部N | F12: 3600 | H12: 1600 | I12: 2000 | J12: ○ | K12: ○
D13: 230340Z01110 | E13: 稲沢千代田NM | F13: 2600 | H13: 1350 | I13: 1250 | J13: ○ | K13: ○
D14: 230340Z01130 | E14: 祖父江NM | F14: 4000 | H14: 2350 | I14: 1650 | J14: ○ | K14: ○
D15: 230340Z01140 | E15: 祖父江南部NMS | F15: 2650 | H15: 1850 | I15: 800 | J15: ○ | K15: ○
D16: 230340Z01150 | E16: 平和NMS | F16: 6550 | H16: 3250 | I16: 3300 | J16: ○ | K16: ○
E26: =CONCATENATE(FIXED(COUNTA(E5:E25),0,0)," 店") -> 12 店 | F26: =SUM(F5:F25) -> 51200 | G26: =SUM(G5:G25) -> 0 | H26: =SUM(H5:H25) -> 24100 | I26: =SUM(I5:I25) -> 27100
A28: 津島市 | D28: 230310Z01010 | E28: 尾張津島NM | F28: 10800 | H28: 4800 | I28: =F28-H28 -> 6000 | J28: ○ | K28: ○
A29: =SUM(G37) -> 0 | B29: ／ | C29: =SUM(F37) -> 25700 | D29: 230310Z01040 | E29: 津島西部NMS | F29: 2900 | H29: 1350 | I29: =F29-H29 -> 1550 | J29: ○ | K29: ○
D30: 230310Z01050 | E30: 津島北部NMS | F30: 3950 | H30: 1950 | I30: =F30-H30 -> 2000 | J30: ○ | K30: ○
D31: 230310Z01020 | E31: 神守NMS | F31: 5850 | H31: 2550 | I31: =F31-H31 -> 3300 | J31: ○ | K31: ○
D32: 230310Z01030 | E32: 青塚NM | F32: 2200 | H32: 1000 | I32: =F32-H32 -> 1200 | J32: ○ | K32: ○
E37: =CONCATENATE(FIXED(COUNTA(E28:E36),0,0)," 店") -> 5 店 | F37: =SUM(F28:F36) -> 25700 | G37: =SUM(G28:G36) -> 0 | H37: =SUM(H28:H36) -> 11650 | I37: =SUM(I28:I36) -> 14050
A39: 愛西市 | D39: 230375Z01010 | E39: 勝幡NM | F39: 3050 | H39: 1550 | I39: =F39-H39 -> 1500 | J39: ○ | K39: ○
A40: =SUM(G48) -> 0 | B40: ／ | C40: =SUM(F48) -> 21550 | D40: 230375Z01020 | E40: 藤浪NM | F40: 2200 | H40: 1050 | I40: =F40-H40 -> 1150 | J40: ○ | K40: ○
D41: 230375Z01030 | E41: 佐屋NAMS | F41: 3950 | H41: 1900 | I41: =F41-H41 -> 2050 | J41: ○ | K41: ○
D42: 230375Z01040 | E42: 永和NMS | F42: 8200 | H42: 3850 | I42: =F42-H42 -> 4350 | J42: ○ | K42: ○
D43: 230375Z01050 | E43: 南佐屋NAMS | F43: 4150 | H43: 2350 | I43: =F43-H43 -> 1800 | J43: ○ | K43: ○
E48: =CONCATENATE(FIXED(COUNTA(E39:E47),0,0)," 店") -> 5 店 | F48: =SUM(F39:F47) -> 21550 | G48: =SUM(G39:G47) -> 0 | H48: =SUM(H39:H47) -> 10700 | I48: =SUM(I39:I47) -> 10850
A49: 2026年前期（12月1日以降） | K49: ㈱中日総合サービス

Sheet 弥富市・あま市・海部郡
A1: 折込日 | E1: 広告主 | H1: サイズ
E2: チラシ銘柄 | H2: 部数 | I2: =SUM(A6,A17,A32) -> 0
K3: ※2025年12月は第2金曜日、2026年5月は第4金曜日のみの実施となります。
A4: 地区 | D4: 店名 | F4: 折込プラス部数 | G4: 依頼部数 | H4: 朝刊折込部数 | I4: 未購読部数 | J4: 第2金曜日 | K4: 第4金曜日
A5: 弥富市 | D5: 230390Z01010 | E5: 尾張弥富NAMS | F5: 4750 | H5: 2100 | I5: =F5-H5 -> 2650 | J5: ○ | K5: ○
A6: =SUM(G14) -> 0 | B6: ／ | C6: =SUM(F14) -> 17250 | D6: 230390Z01020 | E6: 弥富駅前NAMS | F6: 4650 | H6: 2200 | I6: =F6-H6 -> 2450 | J6: ○ | K6: ○
D7: 230390Z01040 | E7: 弥富中央NAMS | F7: 5550 | H7: 2250 | I7: =F7-H7 -> 3300 | J7: ○ | K7: ○
D8: 230390Z01030 | E8: 木曽岬NAMSI | F8: 2300 | H8: 1000 | I8: =F8-H8 -> 1300 | J8: ○ | K8: ○
E14: =CONCATENATE(FIXED(COUNTA(E5:E13),0,0)," 店") -> 4 店 | F14: =SUM(F5:F13) -> 17250 | G14: =SUM(G5:G13) -> 0 | H14: =SUM(H5:H13) -> 7550 | I14: =SUM(I5:I13) -> 9700
A16: あま市 | D16: 230395Z01010 | E16: 甚目寺NMS | F16: 6350 | H16: 2350 | I16: =F16-H16 -> 4000 | J16: ○ | K16: ○
A17: =SUM(G29) -> 0 | B17: ／ | C17: =SUM(F29) -> 29550 | D17: 230395Z01020 | E17: 甚目寺南部NAMS | F17: 3150 | H17: 1250 | I17: 1900 | J17: ○ | K17: ○
D18: 230395Z01040 | E18: 甚目寺西部NMS | F18: 3100 | H18: 1450 | I18: 1650 | J18: ○ | K18: ○
D19: 230395Z01050 | E19: 七宝NMS | F19: 8050 | H19: 3600 | I19: 4450 | J19: ○ | K19: ○
D20: 230395Z01060 | E20: 木田NAMS | F20: 4700 | H20: 2100 | I20: 2600 | J20: ○ | K20: ○
D21: 230395Z01070 | E21: 美和正則NAMS | F21: 4200 | H21: 2000 | I21: 2200 | J21: ○ | K21: ○
E29: =CONCATENATE(FIXED(COUNTA(E16:E28),0,0)," 店") -> 6 店 | F29: =SUM(F16:F28) -> 29550 | G29: =SUM(G16:G28) -> 0 | H29: =SUM(H16:H28) -> 12750 | I29: =SUM(I16:I28) -> 16800
A31: 海部郡 | D31: 230380Z01050 | E31: 蟹江須成NMS | F31: 6650 | H31: 2500 | I31: =F31-H31 -> 4150 | J31: ○ | K31: ○
A32: =SUM(G48) -> 0 | B32: ／ | C32: =SUM(F48) -> 28650 | D32: 230380Z01070 | E32: 舟入NAM | F32: 1350 | H32: 850 | I32: 500 | J32: ○ | K32: ○
D33: 230380Z01060 | E33: 蟹江南部NMS | F33: 6050 | H33: 2200 | I33: 3850 | J33: ○ | K33: ○
D34: 230380Z01080 | E34: 飛島NAMS | F34: 1700 | H34: 1250 | I34: 450 | J34: ○ | K34: ○
D35: 230380Z01200 | E35: 大治東部NAM | F35: 4300 | H35: 1450 | I35: 2850 | J35: ○ | K35: ○
D36: 230380Z01210 | E36: 大治南部NAMS | F36: 3950 | H36: 1300 | I36: 2650 | J36: ○ | K36: ○
D37: 230380Z01220 | E37: 大治西部NAM | F37: 2350 | H37: 850 | I37: 1500 | J37: ○ | K37: ○
D38: 230380Z01240 | E38: 万場北NAM | F38: 2300 | H38: 750 | I38: 1550 | J38: ○ | K38: ○
E48: =CONCATENATE(FIXED(COUNTA(E31:E47),0,0)," 店") -> 8 店 | F48: =SUM(F31:F47) -> 28650 | G48: =SUM(G31:G47) -> 0 | H48: =SUM(H31:H47) -> 11150 | I48: =SUM(I31:I47) -> 17500
A49: 2026年前期（12月1日以降） | K49: ㈱中日総合サービス

Sheet 清須市・北名古屋市・西春日井郡・岩倉市
A1: 折込日 | E1: 広告主 | H1: サイズ
E2: チラシ銘柄 | H2: 部数 | I2: =SUM(A6,A19,A29,A38) -> 0
K3: ※2025年12月は第2金曜日、2026年5月は第4金曜日のみの実施となります。
A4: 地区 | D4: 店名 | F4: 折込プラス部数 | G4: 依頼部数 | H4: 朝刊折込部数 | I4: 未購読部数 | J4: 第2金曜日 | K4: 第4金曜日
A5: 清須市 | D5: 230385Z01080 | E5: 清須北部NS | F5: 7900 | H5: 3050 | I5: =F5-H5 -> 4850 | J5: ○ | K5: ○
A6: =SUM(G16) -> 0 | B6: ／ | C6: =SUM(F16) -> 30200 | D6: 230385Z01060 | E6: あま清洲NMS | F6: 7300 | H6: 2300 | I6: 5000 | J6: ○ | K6: ○
D7: 230385Z01020 | E7: 枇杷島NMS | F7: 5550 | H7: 2200 | I7: 3350 | J7: ○ | K7: ○
D8: 230385Z01030 | E8: 西枇杷島NM | F8: 3200 | H8: 1000 | I8: 2200 | J8: ○ | K8: ○
D9: 230385Z01040 | E9: 尾張新川南部NS | F9: 2600 | H9: 1100 | I9: 1500 | J9: ○ | K9: ○
D10: 230385Z01050 | E10: 尾張新川北部N | F10: 3650 | H10: 1400 | I10: 2250 | J10: ○ | K10: ○
E16: =CONCATENATE(FIXED(COUNTA(E5:E15),0,0)," 店") -> 6 店 | F16: =SUM(F5:F15) -> 30200 | G16: =SUM(G5:G15) -> 0 | H16: =SUM(H5:H15) -> 11050 | I16: =SUM(I5:I15) -> 19150
A18: 北名古屋市 | D18: 230370Z01010 | E18: 北名古屋NMS | F18: 33200 | H18: 12900 | I18: =F18-H18 -> 20300 | J18: ○ | K18: ○
A19: =SUM(G26) -> 0 | B19: ／ | C19: =SUM(F26) -> 33200
E26: =CONCATENATE(FIXED(COUNTA(E18:E25),0,0)," 店") -> 1 店 | F26: =SUM(F18:F25) -> 33200 | G26: =SUM(G18:G25) -> 0 | H26: =SUM(H18:H25) -> 12900 | I26: =SUM(I18:I25) -> 20300
A28: 西春日井郡 | D28: 230365Z01010 | E28: 豊山北NMS | F28: 2250 | H28: 950 | I28: =F28-H28 -> 1300 | J28: ○ | K28: ○
A29: =SUM(G35) -> 0 | B29: ／ | C29: =SUM(F35) -> 5850 | D29: 230365Z01020 | E29: 豊場NM | F29: 3600 | H29: 1250 | I29: =F29-H29 -> 2350 | J29: ○ | K29: ○
E35: =CONCATENATE(FIXED(COUNTA(E28:E34),0,0)," 店") -> 2 店 | F35: =SUM(F28:F34) -> 5850 | G35: =SUM(G28:G34) -> 0 | H35: =SUM(H28:H34) -> 2200 | I35: =SUM(I28:I34) -> 3650
A37: 岩倉市 | D37: 230230Z01010 | E37: 岩倉NMS | F37: 9800 | H37: 3800 | I37: =F37-H37 -> 6000 | J37: ○ | K37: ○
A38: =SUM(G48) -> 0 | B38: ／ | C38: =SUM(F48) -> 16950 | D38: 230230Z01020 | E38: 岩倉東部NMS | F38: 4700 | H38: 1700 | I38: =F38-H38 -> 3000 | J38: ○ | K38: ○
D39: 230230Z01030 | E39: 岩倉南部NMS | F39: 2450 | H39: 1100 | I39: =F39-H39 -> 1350 | J39: ○ | K39: ○
E48: =CONCATENATE(FIXED(COUNTA(E37:E47),0,0)," 店") -> 3 店 | F48: =SUM(F37:F47) -> 16950 | G48: =SUM(G37:G47) -> 0 | H48: =SUM(H37:H47) -> 6600 | I48: =SUM(I37:I47) -> 10350
A49: 2026年前期（12月1日以降） | K49: ㈱中日総合サービス

Sheet 江南市・丹羽郡・犬山市
A1: 折込日 | E1: 広告主 | H1: サイズ
E2: チラシ銘柄 | H2: 部数 | I2: =SUM(A6,A23,A36) -> 0
K3: ※2025年12月は第2金曜日、2026年5月は第4金曜日のみの実施となります。
A4: 地区 | D4: 店名 | F4: 折込プラス部数 | G4: 依頼部数 | H4: 朝刊折込部数 | I4: 未購読部数 | J4: 第2金曜日 | K4: 第4金曜日
A5: 江南市 | D5: 230220Z01010 | E5: 古知野NMS | F5: 4350 | H5: 2200 | I5: =F5-H5 -> 2150 | J5: ○ | K5: ○
A6: =SUM(G20) -> 0 | B6: ／ | C6: =SUM(F20) -> 34300 | D6: 230220Z01100 | E6: 江南中部NMS | F6: 4850 | H6: 2000 | I6: 2850 | J6: ○ | K6: ○
D7: 230220Z01050 | E7: 古知野東部NMS | F7: 2350 | H7: 1050 | I7: 1300 | J7: ○ | K7: ○
D8: 230220Z01060 | E8: 江南まんだら寺前NMS | F8: 6600 | H8: 2500 | I8: 4100 | J8: ○ | K8: ○
D9: 230220Z01080 | E9: 江南北部NMS | F9: 4300 | H9: 2000 | I9: 2300 | J9: ○ | K9: ○
D10: 230220Z01031 | E10: 江南草井NM | F10: 3950 | H10: 1800 | I10: 2150 | J10: ○ | K10: ○
D11: 230220Z01040 | E11: 布袋NMS | F11: 4100 | H11: 2200 | I11: 1900 | J11: ○ | K11: ○
D12: 230220Z01070 | E12: 布袋北部NM | F12: 2150 | H12: 1100 | I12: 1050 | J12: ○ | K12: ○
D13: 230220Z01090 | E13: 加納馬場NM | F13: 1650 | H13: 950 | I13: 700 | J13: ○ | K13: ○
E20: =CONCATENATE(FIXED(COUNTA(E5:E19),0,0)," 店") -> 9 店 | F20: =SUM(F5:F19) -> 34300 | G20: =SUM(G5:G19) -> 0 | H20: =SUM(H5:H19) -> 15800 | I20: =SUM(I5:I19) -> 18500
A22: 丹羽郡 | D22: 230240Z01040 | E22: 柏森NMS | F22: 7150 | H22: 3200 | I22: =F22-H22 -> 3950 | J22: ○ | K22: ○
A23: =SUM(G33) -> 0 | B23: ／ | C23: =SUM(F33) -> 20900 | D23: 230240Z01010 | E23: 扶桑NMS | F23: 4500 | H23: 1950 | I23: 2550 | J23: ○ | K23: ○
D24: 230240Z01030 | E24: 扶桑東NMS | F24: 2100 | H24: 800 | I24: 1300 | J24: ○ | K24: ○
D25: 230240Z01020 | E25: 扶桑山名NM | F25: 1900 | H25: 1000 | I25: 900 | J25: ○ | K25: ○
D26: 230240Z01050 | E26: 大口北部NM | F26: 3600 | H26: 1600 | I26: 2000 | J26: ○ | K26: ○
D27: 230240Z01060 | E27: 大口南部NMS | F27: 1650 | H27: 950 | I27: 700 | J27: ○ | K27: ○
E33: =CONCATENATE(FIXED(COUNTA(E22:E32),0,0)," 店") -> 6 店 | F33: =SUM(F22:F32) -> 20900 | G33: =SUM(G22:G32) -> 0 | H33: =SUM(H22:H32) -> 9500 | I33: =SUM(I22:I32) -> 11400
A35: 犬山市 | D35: 230210Z01010 | E35: 犬山NMS | F35: 9000 | H35: 3700 | I35: =F35-H35 -> 5300 | J35: ○ | K35: ○
A36: =SUM(G48) -> 0 | B36: ／ | C36: =SUM(F48) -> 24850 | D36: 230210Z01050 | E36: 犬山駅東NMS | F36: 2450 | H36: 1000 | I36: 1450 | J36: ○ | K36: ○
D37: 230210Z01040 | E37: 犬山城東NMS | F37: 2400 | H37: 1350 | I37: 1050 | J37: ○ | K37: ○
D38: 230210Z01080 | E38: 前原NMS | F38: 2600 | H38: 1550 | I38: 1050 | J38: ○ | K38: ○
D39: 230210Z01070 | E39: 羽黒NMS | F39: 2300 | H39: 1150 | I39: 1150 | J39: ○ | K39: ○
D40: 230210Z01060 | E40: 羽黒東部NMS | F40: 2300 | H40: 1100 | I40: 1200 | J40: ○ | K40: ○
D41: 230210Z01020 | E41: 楽田NMS | F41: 1650 | H41: 1050 | I41: 600 | J41: ○ | K41: ○
D42: 230210Z01030 | E42: 楽田東部NMS | F42: 2150 | H42: 1250 | I42: 900 | J42: ○ | K42: ○
E48: =CONCATENATE(FIXED(COUNTA(E35:E47),0,0)," 店") -> 8 店 | F48: =SUM(F35:F47) -> 24850 | G48: =SUM(G35:G47) -> 0 | H48: =SUM(H35:H47) -> 12150 | I48: =SUM(I35:I47) -> 12700
A49: 2026年前期（12月1日以降） | K49: ㈱中日総合サービス

Sheet 小牧市
A1: 折込日 | E1: 広告主 | H1: サイズ
E2: チラシ銘柄 | H2: 部数 | I2: =SUM(A6) -> 0
K3: ※2025年12月は第2金曜日、2026年5月は第4金曜日のみの実施となります。
A4: 地区 | D4: 店名 | F4: 折込プラス部数 | G4: 依頼部数 | H4: 朝刊折込部数 | I4: 未購読部数 | J4: 第2金曜日 | K4: 第4金曜日
A5: 小牧市 | D5: 230520Z01010 | E5: 小牧中央NMS | F5: 5650 | H5: 2450 | I5: =F5-H5 -> 3200 | J5: ○ | K5: ○
A6: =SUM(G48) -> 0 | B6: ／ | C6: =SUM(F48) -> 54700 | D6: 230520Z01020 | E6: 小牧南部NMS | F6: 5350 | H6: 2050 | I6: 3300 | J6: ○ | K6: ○
D7: 230520Z01150 | E7: 小牧陶NMS | F7: 2400 | H7: 1200 | I7: 1200 | J7: ○ | K7: ○
D8: 230520Z01030 | E8: 小牧北部NM | F8: 3150 | H8: 1050 | I8: 2100 | J8: ○ | K8: ○
D9: 230520Z01040 | E9: 小牧北里NM | F9: 1950 | H9: 1050 | I9: 900 | J9: ○ | K9: ○
D10: 230520Z01050 | E10: 小牧小木NMS | F10: 2700 | H10: 1100 | I10: 1600 | J10: ○ | K10: ○
D11: 230520Z01060 | E11: 小牧三ツ渕NMS | F11: 3000 | H11: 1500 | I11: 1500 | J11: ○ | K11: ○
D12: 230520Z01080 | E12: 小牧村中NMS | F12: 4300 | H12: 1550 | I12: 2750 | J12: ○ | K12: ○
D13: 230520Z01090 | E13: 味岡NMS | F13: 7150 | H13: 3050 | I13: 4100 | J13: ○ | K13: ○
D14: 230520Z01100 | E14: 小牧原NMS | F14: 2250 | H14: 950 | I14: 1300 | J14: ○ | K14: ○
D15: 230520Z01110 | E15: 小牧東部NMS | F15: 4250 | H15: 1400 | I15: 2850 | J15: ○ | K15: ○
D16: 230520Z01130 | E16: 小牧本庄NMS | F16: 2200 | H16: 1100 | I16: 1100 | J16: ○ | K16: ○
D17: 230520Z01140 | E17: 小牧池の内NM | F17: 1600 | H17: 850 | I17: 750 | J17: ○ | K17: ○
D18: 230520Z01170 | E18: 桃花台西NMS | F18: 3250 | H18: 1600 | I18: 1650 | J18: ○ | K18: ○
D19: 230520Z01180 | E19: 桃花台東NMS | F19: 5500 | H19: 2800 | I19: 2700 | J19: ○ | K19: ○
E48: =CONCATENATE(FIXED(COUNTA(E5:E47),0,0)," 店") -> 15 店 | F48: =SUM(F5:F47) -> 54700 | G48: =SUM(G5:G47) -> 0 | H48: =SUM(H5:H47) -> 23700 | I48: =SUM(I5:I47) -> 31000
A49: 2026年前期（12月1日以降） | K49: ㈱中日総合サービス

Sheet 春日井市
A1: 折込日 | E1: 広告主 | H1: サイズ
E2: チラシ銘柄 | H2: 部数 | I2: =SUM(A6) -> 0
K3: ※2025年12月は第2金曜日、2026年5月は第4金曜日のみの実施となります。
A4: 地区 | D4: 店名 | F4: 折込プラス部数 | G4: 依頼部数 | H4: 朝刊折込部数 | I4: 未購読部数 | J4: 第2金曜日 | K4: 第4金曜日
A5: 春日井市 | D5: 230510Z01010 | E5: 春日井西部NMS | F5: 7200 | H5: 3150 | I5: =F5-H5 -> 4050 | J5: ○ | K5: ○
A6: =SUM(G48) -> 0 | B6: ／ | C6: =SUM(F48) -> 114450 | D6: 230510Z01020 | E6: 春日井宮町NMS | F6: 8400 | H6: 3600 | I6: 4800 | J6: ○ | K6: ○
D7: 230510Z01030 | E7: 春日井中新町NMS | F7: 2200 | H7: 850 | I7: 1350 | J7: ○ | K7: ○
D8: 230510Z01040 | E8: 勝川NMS | F8: 3450 | H8: 1250 | I8: 2200 | J8: ○ | K8: ○
D9: 230510Z01270 | E9: 勝川東部NMS | F9: 2950 | H9: 1200 | I9: 1750 | J9: ○ | K9: ○
D10: 230510Z01050 | E10: 勝川南部NMS | F10: 5600 | H10: 2150 | I10: 3450 | J10: ○ | K10: ○
D11: 230510Z01070 | E11: 春日井八田NM | F11: 4250 | H11: 1650 | I11: 2600 | J11: ○ | K11: ○
D12: 230510Z01080 | E12: 春日井松河戸NMS | F12: 3550 | H12: 1200 | I12: 2350 | J12: ○ | K12: ○
D13: 230510Z01090 | E13: 春日井上条NMS | F13: 3900 | H13: 1500 | I13: 2400 | J13: ○ | K13: ○
D14: 230510Z01100 | E14: 春日井NMS | F14: 9750 | H14: 4400 | I14: 5350 | J14: ○ | K14: ○
D15: 230510Z01280 | E15: 春日井高校前NMS | F15: 2800 | H15: 1300 | I15: 1500 | J15: ○ | K15: ○
D16: 230510Z01110 | E16: 鳥居松NMS | F16: 8300 | H16: 3550 | I16: 4750 | J16: ○ | K16: ○
D17: 230510Z01120 | E17: 春日井大泉寺NMS | F17: 1650 | H17: 850 | I17: 800 | J17: ○ | K17: ○
D18: 230510Z01130 | E18: 神領NMS | F18: 2650 | H18: 1150 | I18: 1500 | J18: ○ | K18: ○
D19: 230510Z01140 | E19: 高蔵寺NMS | F19: 10150 | H19: 3800 | I19: 6350 | J19: ○ | K19: ○
D20: 230510Z01150 | E20: 春日井出川NMS | F20: 4200 | H20: 1400 | I20: 2800 | J20: ○ | K20: ○
D21: 230510Z01160 | E21: 尾張坂下NMS | F21: 6000 | H21: 2950 | I21: 3050 | J21: ○ | K21: ○
D22: 230510Z01200 | E22: 藤山台NMS | F22: 3650 | H22: 1500 | I22: 2150 | J22: ○ | K22: ○
D23: 230510Z01210 | E23: 高森台NMS | F23: 5850 | H23: 2250 | I23: 3600 | J23: ○ | K23: ○
D24: 230510Z01230 | E24: 岩成台NMS | F24: 5400 | H24: 1850 | I24: 3550 | J24: ○ | K24: ○
D25: 230510Z01240 | E25: 石尾台NMS | F25: 4550 | H25: 2000 | I25: 2550 | J25: ○ | K25: ○
D26: 230510Z01180 | E26: 鷹来桃山NMS | F26: 8000 | H26: 3800 | I26: 4200 | J26: ○ | K26: ○
E48: =CONCATENATE(FIXED(COUNTA(E5:E47),0,0)," 店") -> 22 店 | F48: =SUM(F5:F47) -> 114450 | G48: =SUM(G5:G47) -> 0 | H48: =SUM(H5:H47) -> 47350 | I48: =SUM(I5:I47) -> 67100
A49: 2026年前期（12月1日以降） | K49: ㈱中日総合サービス

Sheet 瀬戸市・尾張旭市
A1: 折込日 | E1: 広告主 | H1: サイズ
E2: チラシ銘柄 | H2: 部数 | I2: =SUM(A6,A33) -> 0
K3: ※2025年12月は第2金曜日、2026年5月は第4金曜日のみの実施となります。
A4: 地区 | D4: 店名 | F4: 折込プラス部数 | G4: 依頼部数 | H4: 朝刊折込部数 | I4: 未購読部数 | J4: 第2金曜日 | K4: 第4金曜日
A5: 瀬戸市 | D5: 230530Z01010 | E5: 瀬戸品野NAMYS | F5: 3050 | H5: 2050 | I5: =F5-H5 -> 1000 | J5: ○ | K5: ○
A6: =SUM(G30) -> 0 | B6: ／ | C6: =SUM(F30) -> 44800 | D6: 230530Z01030 | E6: 瀬戸東NAMS | F6: 1800 | H6: 1100 | I6: 700 | J6: ○ | K6: ○
D7: 230530Z01040 | E7: 瀬戸(加藤)NMS | F7: 3750 | H7: 1650 | I7: 2100 | J7: ○ | K7: ○
D8: 230530Z01050 | E8: 瀬戸陶原NMS | F8: 4200 | H8: 1800 | I8: 2400 | J8: ○ | K8: ○
D9: 230530Z01070 | E9: 水野西NMS | F9: 3550 | H9: 1700 | I9: 1850 | J9: ○ | K9: ○
D10: 230530Z01080 | E10: 中水野NAMS | F10: 2500 | H10: 1400 | I10: 1100 | J10: ○ | K10: ○
D11: 230530Z01100 | E11: 新瀬戸NMS | F11: 3200 | H11: 1400 | I11: 1800 | J11: ○ | K11: ○
D12: 230530Z01090 | E12: 瀬戸南山NMS | F12: 3700 | H12: 1650 | I12: 2050 | J12: ○ | K12: ○
D13: 230530Z01110 | E13: 原山台NMS | F13: 2050 | H13: 750 | I13: 1300 | J13: ○ | K13: ○
D14: 230530Z01120 | E14: 瀬戸菱野NMS | F14: 2950 | H14: 1500 | I14: 1450 | J14: ○ | K14: ○
D15: 230530Z01140 | E15: 瀬戸南部NMS | F15: 4800 | H15: 2200 | I15: 2600 | J15: ○ | K15: ○
D16: 230530Z01170 | E16: 瀬戸長根NMS | F16: 4000 | H16: 1850 | I16: 2150 | J16: ○ | K16: ○
D17: 230530Z01150 | E17: 瀬戸幡山NM | F17: 2650 | H17: 1200 | I17: 1450 | J17: ○ | K17: ○
D18: 230530Z01180 | E18: 瀬戸山口NM | F18: 2600 | H18: 1000 | I18: 1600 | J18: ○ | K18: ○
E30: =CONCATENATE(FIXED(COUNTA(E5:E29),0,0)," 店") -> 14 店 | F30: =SUM(F5:F29) -> 44800 | G30: =SUM(G5:G29) -> 0 | H30: =SUM(H5:H29) -> 21250 | I30: =SUM(I5:I29) -> 23550
A32: 尾張旭市 | D32: 230540Z01010 | E32: 三郷NMS | F32: 3100 | H32: 1250 | I32: =F32-H32 -> 1850 | J32: ○ | K32: ○
A33: =SUM(G48) -> 0 | B33: ／ | C33: =SUM(F48) -> 28750 | D33: 230540Z01020 | E33: 平池NMS | F33: 5650 | H33: 2750 | I33: 2900 | J33: ○ | K33: ○
D34: 230540Z01040 | E34: 尾張旭北部NMS | F34: 3500 | H34: 1700 | I34: 1800 | J34: ○ | K34: ○
D35: 230540Z01030 | E35: 旭新居NMS | F35: 6050 | H35: 2800 | I35: 3250 | J35: ○ | K35: ○
D36: 230540Z01050 | E36: 本地ヶ原NMS | F36: 7500 | H36: 3000 | I36: 4500 | J36: ○ | K36: ○
D37: 230540Z01070 | E37: 瑞鳳NM | F37: 2950 | H37: 1450 | I37: 1500 | J37: ○ | K37: ○
E48: =CONCATENATE(FIXED(COUNTA(E32:E47),0,0)," 店") -> 6 店 | F48: =SUM(F32:F47) -> 28750 | G48: =SUM(G32:G47) -> 0 | H48: =SUM(H32:H47) -> 12950 | I48: =SUM(I32:I47) -> 15800
A49: 2026年前期（12月1日以降） | K49: ㈱中日総合サービス

Sheet 日進市・豊明市
A1: 折込日 | E1: 広告主 | H1: サイズ
E2: チラシ銘柄 | H2: 部数 | I2: =SUM(A6,A26) -> 0
K3: ※2025年12月は第2金曜日、2026年5月は第4金曜日のみの実施となります。
A4: 地区 | D4: 店名 | F4: 折込プラス部数 | G4: 依頼部数 | H4: 朝刊折込部数 | I4: 未購読部数 | J4: 第2金曜日 | K4: 第4金曜日
A5: 日進市 | D5: 230560Z01010 | E5: 岩崎NMS | F5: 3000 | H5: 1350 | I5: =F5-H5 -> 1650 | J5: ○ | K5: ○
A6: =SUM(G23) -> 0 | B6: ／ | C6: =SUM(F23) -> 26550 | D6: 230560Z01110 | E6: 岩崎香久山NMS | F6: 3500 | H6: 1400 | I6: 2100 | J6: ○ | K6: ○
D7: 230560Z01100 | E7: 岩崎台NMS | F7: 1600 | H7: 850 | I7: 750 | J7: ○ | K7: ○
D8: 230560Z01030 | E8: 五色園NMS | F8: 2400 | H8: 1250 | I8: 1150 | J8: ○ | K8: ○
D9: 230560Z01040 | E9: 日進米野木NMS | F9: 4000 | H9: 1800 | I9: 2200 | J9: ○ | K9: ○
D10: 230560Z01050 | E10: 日進中部NMS | F10: 1600 | H10: 900 | I10: 700 | J10: ○ | K10: ○
D11: 230560Z01060 | E11: 赤池NMS | F11: 2950 | H11: 1100 | I11: 1850 | J11: ○ | K11: ○
D12: 230560Z01070 | E12: 日進折戸NMS | F12: 4650 | H12: 2150 | I12: 2500 | J12: ○ | K12: ○
D13: 230560Z01080 | E13: 日進浅田NMS | F13: 2850 | H13: 1200 | I13: 1650 | J13: ○ | K13: ○
E23: =CONCATENATE(FIXED(COUNTA(E5:E22),0,0)," 店") -> 9 店 | F23: =SUM(F5:F22) -> 26550 | G23: =SUM(G5:G22) -> 0 | H23: =SUM(H5:H22) -> 12000 | I23: =SUM(I5:I22) -> 14550
A25: 豊明市 | D25: 230550Z01010 | E25: 豊明団地NMS | F25: 4450 | H25: 1700 | I25: =F25-H25 -> 2750 | J25: ○ | K25: ○
A26: =SUM(G48) -> 0 | B26: ／ | C26: =SUM(F48) -> 23900 | D26: 230550Z01040 | E26: 豊明東部NMS | F26: 4000 | H26: 1900 | I26: 2100 | J26: ○ | K26: ○
D27: 230550Z01020 | E27: 前後NMS | F27: 4750 | H27: 2100 | I27: 2650 | J27: ○ | K27: ○
D28: 230550Z01030 | E28: 豊明桜ヶ丘NMS | F28: 3000 | H28: 1500 | I28: 1500 | J28: ○ | K28: ○
D29: 230550Z01050 | E29: 沓掛NMS | F29: 5500 | H29: 2300 | I29: 3200 | J29: ○ | K29: ○
D30: 230550Z01060 | E30: 豊明南館NM | F30: 2200 | H30: 950 | I30: 1250 | J30: ○ | K30: ○
E48: =CONCATENATE(FIXED(COUNTA(E25:E47),0,0)," 店") -> 6 店 | F48: =SUM(F25:F47) -> 23900 | G48: =SUM(G25:G47) -> 0 | H48: =SUM(H25:H47) -> 10450 | I48: =SUM(I25:I47) -> 13450
A49: 2026年前期（12月1日以降） | K49: ㈱中日総合サービス

Sheet 長久手市・愛知郡・大府市
A1: 折込日 | E1: 広告主 | H1: サイズ
E2: チラシ銘柄 | H2: 部数 | I2: =SUM(A6,A20,A34) -> 0
K3: ※2025年12月は第2金曜日、2026年5月は第4金曜日のみの実施となります。
A4: 地区 | D4: 店名 | F4: 折込プラス部数 | G4: 依頼部数 | H4: 朝刊折込部数 | I4: 未購読部数 | J4: 第2金曜日 | K4: 第4金曜日
A5: 長久手市 | D5: 230590Z01010 | E5: 長久手北部NMS | F5: 4700 | H5: 1650 | I5: =F5-H5 -> 3050 | J5: ○ | K5: ○
A6: =SUM(G17) -> 0 | B6: ／ | C6: =SUM(F17) -> 20850 | D6: 230590Z01020 | E6: 長久手東部NMS | F6: 3750 | H6: 1850 | I6: =F6-H6 -> 1900 | J6: ○ | K6: ○
D7: 230590Z01030 | E7: 長久手西部NMS | F7: 7800 | H7: 2150 | I7: =F7-H7 -> 5650 | J7: ○ | K7: ○
D8: 230590Z01050 | E8: 長久手南部NMS | F8: 4600 | H8: 1300 | I8: =F8-H8 -> 3300 | J8: ○ | K8: ○
E17: =CONCATENATE(FIXED(COUNTA(E5:E16),0,0)," 店") -> 4 店 | F17: =SUM(F5:F16) -> 20850 | G17: =SUM(G5:G16) -> 0 | H17: =SUM(H5:H16) -> 6950 | I17: =SUM(I5:I16) -> 13900
A19: 愛知郡 | D19: 230580Z01010 | E19: 和合NMS | F19: 3800 | H19: 1950 | I19: =F19-H19 -> 1850 | J19: ○ | K19: ○
A20: =SUM(G31) -> 0 | B20: ／ | C20: =SUM(F31) -> 14000 | D20: 230580Z01025 | E20: 東郷白鳥NMS | F20: 3400 | H20: 1500 | I20: =F20-H20 -> 1900 | J20: ○ | K20: ○
D21: 230580Z01020 | E21: 諸輪NMS | F21: 2700 | H21: 1200 | I21: =F21-H21 -> 1500 | J21: ○ | K21: ○
D22: 230580Z01040 | E22: 音貝NMS | F22: 4100 | H22: 1750 | I22: =F22-H22 -> 2350 | J22: ○ | K22: ○
E31: =CONCATENATE(FIXED(COUNTA(E19:E30),0,0)," 店") -> 4 店 | F31: =SUM(F19:F30) -> 14000 | G31: =SUM(G19:G30) -> 0 | H31: =SUM(H19:H30) -> 6400 | I31: =SUM(I19:I30) -> 7600
A33: 大府市 | D33: 230420Z01020 | E33: 共和NMS | F33: 10400 | H33: 3750 | I33: =F33-H33 -> 6650 | J33: ○ | K33: ○
A34: =SUM(G48) -> 0 | B34: ／ | C34: =SUM(F48) -> 34800 | D34: 230420Z01070 | E34: 共和西NMS | F34: 3200 | H34: 1250 | I34: 1950 | J34: ○ | K34: ○
D35: 230420Z01010 | E35: 大府NMS | F35: 9650 | H35: 3900 | I35: =F35-H35 -> 5750 | J35: ○ | K35: ○
D36: 230420Z01030 | E36: 大府吉田NMS | F36: 2700 | H36: 1250 | I36: 1450 | J36: ○ | K36: ○
D37: 230420Z01060 | E37: 大府森岡NMS | F37: 4200 | H37: 1650 | I37: 2550 | J37: ○ | K37: ○
D38: 230420Z01080 | E38: 大府駅西NMS | F38: 4650 | H38: 1550 | I38: 3100 | J38: ○ | K38: ○
E48: =CONCATENATE(FIXED(COUNTA(E33:E43),0,0)," 店") -> 6 店 | F48: =SUM(F33:F47) -> 34800 | G48: =SUM(G33:G47) -> 0 | H48: =SUM(H33:H47) -> 13350 | I48: =SUM(I33:I47) -> 21450
A49: 2026年前期（12月1日以降） | K49: ㈱中日総合サービス

Sheet 東海市・知多市
A1: 折込日 | E1: 広告主 | H1: サイズ
E2: チラシ銘柄 | H2: 部数 | I2: =SUM(A6,A29) -> 0
K3: ※2025年12月は第2金曜日、2026年5月は第4金曜日のみの実施となります。
A4: 地区 | D4: 店名 | F4: 折込プラス部数 | G4: 依頼部数 | H4: 朝刊折込部数 | I4: 未購読部数 | J4: 第2金曜日 | K4: 第4金曜日
A5: 東海市 | D5: 230410Z01070 | E5: 名和水谷N | F5: 6850 | H5: 2050 | I5: =F5-H5 -> 4800 | J5: ○ | K5: ○
A6: =SUM(G26) -> 0 | B6: ／ | C6: =SUM(F26) -> 41200 | D6: 230410Z01010 | E6: 荒尾NMS | F6: 7650 | H6: 2750 | I6: 4900 | J6: ○ | K6: ○
D7: 230410Z01090 | E7: 東海大田NMS | F7: 3900 | H7: 1350 | I7: =F7-H7 -> 2550 | J7: ○ | K7: ○
D8: 230410Z01030 | E8: 富木島NMS | F8: 8300 | H8: 2650 | I8: 5650 | J8: ○ | K8: ○
D9: 230410Z01100 | E9: 高横須賀NMS | F9: 3850 | H9: 1350 | I9: 2500 | J9: ○ | K9: ○
D10: 230410Z01080 | E10: 尾張横須賀NMS | F10: 1950 | H10: 850 | I10: 1100 | J10: ○ | K10: ○
D11: 230410Z01110 | E11: 加木屋NMS | F11: 8700 | H11: 3850 | I11: 4850 | J11: ○ | K11: ○
E26: =CONCATENATE(FIXED(COUNTA(E5:E25),0,0)," 店") -> 7 店 | F26: =SUM(F5:F25) -> 41200 | G26: =SUM(G5:G25) -> 0 | H26: =SUM(H5:H25) -> 14850 | I26: =SUM(I5:I25) -> 26350
A28: 知多市 | D28: 230430Z01060 | E28: 朝倉団地NMS | F28: 16650 | H28: 6550 | I28: =F28-H28 -> 10100 | J28: ○ | K28: ○
A29: =SUM(G48) -> 0 | B29: ／ | C29: =SUM(F48) -> 32450 | D29: 230430Z01070 | E29: 巽ヶ丘NMS | F29: 4400 | H29: 1600 | I29: 2800 | J29: ○ | K29: ○
D30: 230430Z01040 | E30: 知多岡田NM | F30: 6150 | H30: 2750 | I30: 3400 | J30: ○ | K30: ○
D31: 230430Z01020 | E31: 新舞子NM | F31: 2750 | H31: 1050 | I31: 1700 | J31: ○ | K31: ○
D32: 230430Z01010 | E32: 知多粕谷NM | F32: 2500 | H32: 1300 | I32: 1200 | J32: ○ | K32: ○
E48: =CONCATENATE(FIXED(COUNTA(E28:E47),0,0)," 店") -> 5 店 | F48: =SUM(F28:F47) -> 32450 | G48: =SUM(G28:G47) -> 0 | H48: =SUM(H28:H47) -> 13250 | I48: =SUM(I28:I47) -> 19200
A49: 2026年前期（12月1日以降） | K49: ㈱中日総合サービス

Sheet 半田市・常滑市
A1: 折込日 | E1: 広告主 | H1: サイズ
E2: チラシ銘柄 | H2: 部数 | I2: =SUM(A6,A27) -> 0
K3: ※2025年12月は第2金曜日、2026年5月は第4金曜日のみの実施となります。
A4: 地区 | D4: 店名 | F4: 折込プラス部数 | G4: 依頼部数 | H4: 朝刊折込部数 | I4: 未購読部数 | J4: 第2金曜日 | K4: 第4金曜日
A5: 半田市 | D5: 230450Z01070 | E5: 亀崎NMS | F5: 6500 | H5: 2850 | I5: =F5-H5 -> 3650 | J5: ○ | K5: ○
A6: =SUM(G24) -> 0 | B6: ／ | C6: =SUM(F24) -> 42150 | D6: 230450Z01060 | E6: 乙川NMS | F6: 5250 | H6: 2200 | I6: =F6-H6 -> 3050 | J6: ○ | K6: ○
D7: 230450Z01130 | E7: 半田北部NMS | F7: 3200 | H7: 1350 | I7: 1850 | J7: ○ | K7: ○
D8: 230450Z01020 | E8: 半田住吉NM | F8: 2400 | H8: 1100 | I8: 1300 | J8: ○ | K8: ○
D9: 230450Z01010 | E9: 半田岩滑NM | F9: 1750 | H9: 1000 | I9: 750 | J9: ○ | K9: ○
D10: 230450Z01120 | E10: 半田清城NM | F10: 2250 | H10: 1100 | I10: 1150 | J10: ○ | K10: ○
D11: 230450Z01110 | E11: 知多半田NMS | F11: 2800 | H11: 1100 | I11: 1700 | J11: ○ | K11: ○
D12: 230450Z01100 | E12: 半田衣浦NMS | F12: 2400 | H12: 850 | I12: 1550 | J12: ○ | K12: ○
D13: 230450Z01050 | E13: 半田中町NMS | F13: 2850 | H13: 1350 | I13: 1500 | J13: ○ | K13: ○
D14: 230450Z01090 | E14: 半田板山NM | F14: 1800 | H14: 1000 | I14: 800 | J14: ○ | K14: ○
D15: 230450Z01030 | E15: 成岩NM | F15: 3850 | H15: 1750 | I15: 2100 | J15: ○ | K15: ○
D16: 230450Z01040 | E16: 半田青山NMS | F16: 7100 | H16: 2600 | I16: 4500 | J16: ○ | K16: ○
E24: =CONCATENATE(FIXED(COUNTA(E5:E23),0,0)," 店") -> 12 店 | F24: =SUM(F5:F23) -> 42150 | G24: =SUM(G5:G23) -> 0 | H24: =SUM(H5:H23) -> 18250 | I24: =SUM(I5:I23) -> 23900
A26: 常滑市 | D26: 230440Z01020 | E26: 尾張大野NMS | F26: 3350 | H26: 2100 | I26: =F26-H26 -> 1250 | J26: ○ | K26: ○
A27: =SUM(G48) -> 0 | B27: ／ | C27: =SUM(F48) -> 12400 | D27: 230440Z01030 | E27: 常滑鬼崎NMYS | F27: 4200 | H27: 2100 | I27: =F27-H27 -> 2100 | J27: ○ | K27: ○
D28: 230440Z01010 | E28: 常滑NMYS | F28: 3600 | H28: 3600 | I28: =F28-H28 -> 0
D29: 230440Z01070 | E29: 常滑南部NAMYS | F29: 1250 | H29: 1250 | I29: =F29-H29 -> 0
E48: =CONCATENATE(FIXED(COUNTA(E26:E47),0,0)," 店") -> 4 店 | F48: =SUM(F26:F47) -> 12400 | G48: =SUM(G26:G47) -> 0 | H48: =SUM(H26:H47) -> 9050 | I48: =SUM(I26:I47) -> 3350
A49: 2026年前期（12月1日以降） | K49: ㈱中日総合サービス

Sheet 知多郡
A1: 折込日 | E1: 広告主 | H1: サイズ
E2: チラシ銘柄 | H2: 部数 | I2: =SUM(A6) -> 0
K3: ※2025年12月は第2金曜日、2026年5月は第4金曜日のみの実施となります。
A4: 地区 | D4: 店名 | F4: 折込プラス部数 | G4: 依頼部数 | H4: 朝刊折込部数 | I4: 未購読部数 | J4: 第2金曜日 | K4: 第4金曜日
A5: 知多郡 | D5: 230460Z01010 | E5: 緒川NMS | F5: 6100 | H5: 2700 | I5: =F5-H5 -> 3400 | J5: ○ | K5: ○
A6: =SUM(G48) -> 0 | B6: ／ | C6: =SUM(F48) -> 38150 | D6: 230460Z01020 | E6: 石浜NMS | F6: 3800 | H6: 1450 | I6: 2350 | J6: ○ | K6: ○
D7: 230460Z01160 | E7: 藤江NMS | F7: 3350 | H7: 1550 | I7: 1800 | J7: ○ | K7: ○
D8: 230460Z01050 | E8: 緒川新田NM | F8: 2000 | H8: 900 | I8: 1100 | J8: ○ | K8: ○
D9: 230460Z01060 | E9: 東ヶ丘NMS | F9: 1950 | H9: 1200 | I9: 750 | J9: ○ | K9: ○
D10: 230460Z01070 | E10: 阿久比NMS | F10: 4150 | H10: 2050 | I10: 2100 | J10: ○ | K10: ○
D11: 230460Z01080 | E11: 坂部NMS | F11: 3350 | H11: 2000 | I11: 1350 | J11: ○ | K11: ○
D12: 230460Z01090 | E12: 武豊NMS | F12: 4750 | H12: 4750 | I12: 0
D13: 230460Z01100 | E13: 富貴NMS | F13: 1200 | H13: 1200 | I13: 0
D14: 230460Z01110 | E14: 河和NAMS | F14: 2600 | H14: 2600 | I14: 0
D15: 230460Z01120 | E15: 野間NAMYS | F15: 1800 | H15: 1800 | I15: 0
D16: 230460Z01150 | E16: 内海NAM | F16: 1000 | H16: 1000 | I16: 0
D17: 230460Z01140 | E17: 豊浜NAMS | F17: 1000 | H17: 1000 | I17: 0
D18: 230460Z01130 | E18: 師崎NAMS | F18: 1100 | H18: 1100 | I18: 0
E48: =CONCATENATE(FIXED(COUNTA(E5:E47),0,0)," 店") -> 14 店 | F48: =SUM(F5:F47) -> 38150 | G48: =SUM(G5:G47) -> 0 | H48: =SUM(H5:H47) -> 25300 | I48: =SUM(I5:I47) -> 12850
A49: 2026年前期（12月1日以降） | K49: ㈱中日総合サービス

Sheet 三河地区
A1: 折込日 | C1: 広告主 | G1: サイズ
C2: チラシ銘柄 | G2: 部数 | H2: =SUM(F27) -> 0
A3: 三河地区 | I3: 2026年前期（12月1日以降）
A4: 地 区 | C4: 折込プラス部数 | E4: 依頼部数 | G4: 朝刊折込部数 | I4: 未購読部数
A5: 刈谷市 | C5: =刈谷市・高浜市・碧南市!F18 -> 52800 | E5: =刈谷市・高浜市・碧南市!G18 -> 0 | F5: =IFERROR(SUM(E5)," ") -> 0 | G5: =刈谷市・高浜市・碧南市!H18 -> 18600 | I5: =刈谷市・高浜市・碧南市!I18 -> 34200
A6: 高浜市 | C6: =刈谷市・高浜市・碧南市!F29 -> 16750 | E6: =刈谷市・高浜市・碧南市!G29 -> 0 | F6: 0 | G6: =刈谷市・高浜市・碧南市!H29 -> 5650 | I6: =刈谷市・高浜市・碧南市!I29 -> 11100
A7: 碧南市 | C7: =刈谷市・高浜市・碧南市!F48 -> 24150 | E7: =刈谷市・高浜市・碧南市!G48 -> 0 | F7: 0 | G7: =刈谷市・高浜市・碧南市!H48 -> 10900 | I7: =刈谷市・高浜市・碧南市!I48 -> 13250
A8: 安城市 | C8: =安城市・知立市!F27 -> 66150 | E8: =安城市・知立市!G27 -> 0 | F8: 0 | G8: =安城市・知立市!H27 -> 26400 | I8: =安城市・知立市!I27 -> 39750
A9: 知立市 | C9: =安城市・知立市!F48 -> 28000 | E9: =安城市・知立市!G48 -> 0 | F9: 0 | G9: =安城市・知立市!H48 -> 9600 | I9: =安城市・知立市!I48 -> 18400
A10: 豊田市 | C10: =豊田市!F48 -> 142050 | E10: =豊田市!G48 -> 0 | F10: 0 | G10: =豊田市!H48 -> 59150 | I10: =豊田市!I48 -> 82900
A11: みよし市 | C11: =みよし市・岡崎市!F14 -> 19600 | E11: =みよし市・岡崎市!G14 -> 0 | F11: 0 | G11: =みよし市・岡崎市!H14 -> 8350 | I11: =みよし市・岡崎市!I14 -> 11250
A12: 岡崎市 | C12: =みよし市・岡崎市!F48 -> 130050 | E12: =みよし市・岡崎市!G48 -> 0 | F12: =IFERROR(SUM(E12)," ") -> 0 | G12: =みよし市・岡崎市!H48 -> 54500 | I12: =みよし市・岡崎市!I48 -> 75550
A13: 額田郡 | C13: =額田郡・西尾市・蒲郡市!F13 -> 11600 | E13: =額田郡・西尾市・蒲郡市!G13 -> 0 | F13: 0 | G13: =額田郡・西尾市・蒲郡市!H13 -> 5400 | I13: =額田郡・西尾市・蒲郡市!I13 -> 6200
A14: 西尾市 | C14: =額田郡・西尾市・蒲郡市!F32 -> 50350 | E14: =額田郡・西尾市・蒲郡市!G32 -> 0 | F14: 0 | G14: =額田郡・西尾市・蒲郡市!H32 -> 25500 | I14: =額田郡・西尾市・蒲郡市!I32 -> 24850
A15: 蒲郡市 | C15: =額田郡・西尾市・蒲郡市!F48 -> 20600 | E15: =額田郡・西尾市・蒲郡市!G48 -> 0 | F15: 0 | G15: =額田郡・西尾市・蒲郡市!H48 -> 13150 | I15: =額田郡・西尾市・蒲郡市!I48 -> 7450
A16: 豊川市 | C16: =豊川市!F48 -> 66700 | E16: =豊川市!G48 -> 0 | F16: 0 | G16: =豊川市!H48 -> 30500 | I16: =豊川市!I48 -> 36200
A17: 新城市 | C17: =新城市・北設楽郡!F26 -> 14000 | E17: =新城市・北設楽郡!G26 -> 0 | F17: 0 | G17: =新城市・北設楽郡!H26 -> 9600 | I17: =新城市・北設楽郡!I26 -> 4400
A18: 北設楽郡 | C18: =新城市・北設楽郡!F48 -> 2450 | E18: =新城市・北設楽郡!G48 -> 0 | F18: 0 | G18: =新城市・北設楽郡!H48 -> 2450 | I18: =新城市・北設楽郡!I48 -> 0
A19: 豊橋市 | C19: =豊橋市!F48 -> 135800 | E19: =豊橋市!G48 -> 0 | F19: 0 | G19: =豊橋市!H48 -> 55600 | I19: =豊橋市!I48 -> 80200
A20: 田原市 | C20: =田原市!F48 -> 10550 | E20: =田原市!G48 -> 0 | F20: 0 | G20: =田原市!H48 -> 10550 | I20: =田原市!I48 -> 0
A21: 合計 | C21: =SUM(C5:C20) -> 791600 | F21: =SUM(F5:F20) -> 0 | G21: =SUM(G5:G20) -> 345900 | I21: =SUM(I5:I20) -> 445700
A23: 愛知県 | C23: 折込プラス部数 | E23: 依頼部数 | G23: 朝刊折込部数 | I23: 未購読部数
A24: 名古屋市 | C24: =SUM(名古屋市!C24) -> 798000 | E24: =IFERROR(名古屋市!F24," ") -> 0 | F24: =E24 -> 0 | G24: =SUM(名古屋市!G24) -> 337400 | I24: =SUM(名古屋市!I24) -> 460600
A25: 尾張地区 | C25: =SUM(尾張地区!C37) -> 995800 | E25: =IFERROR(尾張地区!F37," ") -> 0 | F25: =E25 -> 0 | G25: =SUM(尾張地区!G37) -> 440850 | I25: =SUM(尾張地区!I37) -> 554950
A26: 三河地区 | C26: =SUM(C21) -> 791600 | F26: =F21 -> 0 | G26: =SUM(G21) -> 345900 | I26: =SUM(I21) -> 445700
A27: 合計 | C27: =SUM(C24:C26) -> 2585400 | F27: =SUM(F24:F26) -> 0 | G27: =SUM(G24:G26) -> 1124150 | I27: =SUM(I24:I26) -> 1461250
I28: ㈱中日総合サービス

Sheet 刈谷市・高浜市・碧南市
A1: 折込日 | E1: 広告主 | H1: サイズ
E2: チラシ銘柄 | H2: 部数 | I2: =SUM(A6,A21,A32) -> 0
K3: ※2025年12月は第2金曜日、2026年5月は第4金曜日のみの実施となります。
A4: 地区 | D4: 店名 | F4: 折込プラス部数 | G4: 依頼部数 | H4: 朝刊折込部数 | I4: 未購読部数 | J4: 第2金曜日 | K4: 第4金曜日
A5: 刈谷市 | D5: 230615Z01010 | E5: 刈谷南部N | F5: 9700 | H5: 3300 | I5: =F5-H5 -> 6400 | J5: ○ | K5: ○
A6: =SUM(G18) -> 0 | B6: ／ | C6: =SUM(F18) -> 52800 | D6: 230615Z01020 | E6: 刈谷北部NS | F6: 9500 | H6: 3300 | I6: 6200 | J6: ○ | K6: ○
D7: 230615Z01030 | E7: 刈谷恩田NM | F7: 3350 | H7: 1250 | I7: 2100 | J7: ○ | K7: ○
D8: 230615Z01040 | E8: 小垣江NM | F8: 6000 | H8: 2300 | I8: 3700 | J8: ○ | K8: ○
D9: 230615Z01060 | E9: 東刈谷NMS | F9: 8650 | H9: 3450 | I9: 5200 | J9: ○ | K9: ○
D10: 230615Z01070 | E10: 富士松NMS | F10: 10850 | H10: 3600 | I10: 7250 | J10: ○ | K10: ○
D11: 230615Z01080 | E11: 刈谷愛教大前NMS | F11: 4750 | H11: 1400 | I11: 3350 | J11: ○ | K11: ○
E18: =CONCATENATE(FIXED(COUNTA(E5:E17),0,0)," 店") -> 7 店 | F18: =SUM(F5:F17) -> 52800 | G18: =SUM(G5:G17) -> 0 | H18: =SUM(H5:H17) -> 18600 | I18: =SUM(I5:I17) -> 34200
A20: 高浜市 | D20: 230620Z01040 | E20: 吉浜NM | F20: 5950 | H20: 1700 | I20: =F20-H20 -> 4250 | J20: ○ | K20: ○
A21: =SUM(G29) -> 0 | B21: ／ | C21: =SUM(F29) -> 16750 | D21: 230620Z01030 | E21: 吉浜南部NM | F21: 6250 | H21: 2150 | I21: =F21-H21 -> 4100 | J21: ○ | K21: ○
D22: 230620Z01010 | E22: 高浜NMS | F22: 4550 | H22: 1800 | I22: =F22-H22 -> 2750 | J22: ○ | K22: ○
E29: =CONCATENATE(FIXED(COUNTA(E20:E28),0,0)," 店") -> 3 店 | F29: =SUM(F20:F28) -> 16750 | G29: =SUM(G20:G28) -> 0 | H29: =SUM(H20:H28) -> 5650 | I29: =SUM(I20:I28) -> 11100
A31: 碧南市 | D31: 230625Z01090 | E31: 碧南西端NAM | F31: 2150 | H31: 1150 | I31: =F31-H31 -> 1000 | J31: ○ | K31: ○
A32: =SUM(G48) -> 0 | B32: ／ | C32: =SUM(F48) -> 24150 | D32: 230625Z01080 | E32: 碧南新川NAMS | F32: 5450 | H32: 2300 | I32: 3150 | J32: ○ | K32: ○
D33: 230625Z01060 | E33: 鷲塚NAM | F33: 4000 | H33: 1850 | I33: 2150 | J33: ○ | K33: ○
D34: 230625Z01010 | E34: 棚尾NAMS | F34: 4100 | H34: 1800 | I34: 2300 | J34: ○ | K34: ○
D35: 230625Z01030 | E35: 大浜NAMS | F35: 5000 | H35: 2350 | I35: 2650 | J35: ○ | K35: ○
D36: 230625Z01020 | E36: 大浜南NAMS | F36: 3450 | H36: 1450 | I36: 2000 | J36: ○ | K36: ○
E48: =CONCATENATE(FIXED(COUNTA(E31:E47),0,0)," 店") -> 6 店 | F48: =SUM(F31:F47) -> 24150 | G48: =SUM(G31:G47) -> 0 | H48: =SUM(H31:H47) -> 10900 | I48: =SUM(I31:I47) -> 13250
A49: 2026年前期（12月1日以降） | K49: ㈱中日総合サービス

Sheet 安城市・知立市
A1: 折込日 | E1: 広告主 | H1: サイズ
E2: チラシ銘柄 | H2: 部数 | I2: =SUM(A6,A30) -> 0
K3: ※2025年12月は第2金曜日、2026年5月は第4金曜日のみの実施となります。
A4: 地区 | D4: 店名 | F4: 折込プラス部数 | G4: 依頼部数 | H4: 朝刊折込部数 | I4: 未購読部数 | J4: 第2金曜日 | K4: 第4金曜日
A5: 安城市 | D5: 230635Z01010 | E5: 安城(伊藤)NM | F5: 5400 | H5: 1800 | I5: =F5-H5 -> 3600 | J5: ○ | K5: ○
A6: =SUM(G27) -> 0 | B6: ／ | C6: =SUM(F27) -> 66150 | D6: 230635Z01070 | E6: 南安城NM | F6: 3000 | H6: 1050 | I6: 1950 | J6: ○ | K6: ○
D7: 230635Z01150 | E7: 安祥公園前NM | F7: 4300 | H7: 1550 | I7: 2750 | J7: ○ | K7: ○
D8: 230635Z01030 | E8: 三河安城NM | F8: 4100 | H8: 1450 | I8: 2650 | J8: ○ | K8: ○
D9: 230635Z01040 | E9: 安城西部NMS | F9: 3050 | H9: 1550 | I9: 1500 | J9: ○ | K9: ○
D10: 230635Z01050 | E10: 安城南部NM | F10: 3550 | H10: 1450 | I10: 2100 | J10: ○ | K10: ○
D11: 230635Z01080 | E11: 今村NMS | F11: 10650 | H11: 3950 | I11: 6700 | J11: ○ | K11: ○
D12: 230635Z01090 | E12: 安城今池町NMS | F12: 5000 | H12: 1800 | I12: 3200 | J12: ○ | K12: ○
D13: 230635Z01100 | E13: 石橋団地NMS | F13: 2700 | H13: 1400 | I13: 1300 | J13: ○ | K13: ○
D14: 230635Z01120 | E14: 安城桜井NM | F14: 4950 | H14: 2250 | I14: 2700 | J14: ○ | K14: ○
D15: 230635Z01020 | E15: 安城北部NM | F15: 5300 | H15: 2100 | I15: 3200 | J15: ○ | K15: ○
D16: 230635Z01110 | E16: 二本木NMS | F16: 4200 | H16: 1250 | I16: 2950 | J16: ○ | K16: ○
D17: 230635Z01140 | E17: 安城明祥NM | F17: 2150 | H17: 1250 | I17: 900 | J17: ○ | K17: ○
D18: 230635Z01160 | E18: 半城土・高棚NM | F18: 4000 | H18: 1750 | I18: 2250 | J18: ○ | K18: ○
D19: 230635Z01170 | E19: 南桜井NM | F19: 3800 | H19: 1800 | I19: 2000 | J19: ○ | K19: ○
E27: =CONCATENATE(FIXED(COUNTA(E5:E26),0,0)," 店") -> 15 店 | F27: =SUM(F5:F26) -> 66150 | G27: =SUM(G5:G26) -> 0 | H27: =SUM(H5:H26) -> 26400 | I27: =SUM(I5:I26) -> 39750
A29: 知立市 | D29: 230610Z01010 | E29: 知立(前嶋)NMS | F29: 9700 | H29: 3750 | I29: =F29-H29 -> 5950 | J29: ○ | K29: ○
A30: =SUM(G48) -> 0 | B30: ／ | C30: =SUM(F48) -> 28000 | D30: 230610Z01020 | E30: 知立西部NMS | F30: 4350 | H30: 1600 | I30: 2750 | J30: ○ | K30: ○
D31: 230610Z01030 | E31: 知立南部NMS | F31: 4100 | H31: 1500 | I31: 2600 | J31: ○ | K31: ○
D32: 230610Z01060 | E32: 知立東部NMS | F32: 4500 | H32: 1100 | I32: 3400 | J32: ○ | K32: ○
D33: 230610Z01040 | E33: 知立南陽NMS | F33: 2550 | H33: 800 | I33: 1750 | J33: ○ | K33: ○
D34: 230610Z01050 | E34: 知立谷田NMS | F34: 2800 | H34: 850 | I34: 1950 | J34: ○ | K34: ○
E48: =CONCATENATE(FIXED(COUNTA(E29:E47),0,0)," 店") -> 6 店 | F48: =SUM(F29:F47) -> 28000 | G48: =SUM(G29:G47) -> 0 | H48: =SUM(H29:H47) -> 9600 | I48: =SUM(I29:I47) -> 18400
A49: 2026年前期（12月1日以降） | K49: ㈱中日総合サービス

Sheet 豊田市
A1: 折込日 | E1: 広告主 | H1: サイズ
E2: チラシ銘柄 | H2: 部数 | I2: =SUM(A6) -> 0
K3: ※2025年12月は第2金曜日、2026年5月は第4金曜日のみの実施となります。
A4: 地区 | D4: 店名 | F4: 折込プラス部数 | G4: 依頼部数 | H4: 朝刊折込部数 | I4: 未購読部数 | J4: 第2金曜日 | K4: 第4金曜日
A5: 豊田市 | D5: 230605Z01010 | E5: 挙母中央NM | F5: 7200 | H5: =IFERROR(VLOOKUP(D5,[1]全紙!$F:$K,6,0),"") -> 2150 | I5: =F5-H5 -> 5050 | J5: ○ | K5: ○
A6: =SUM(G48) -> 0 | B6: ／ | C6: =SUM(F48) -> 142050 | D6: 230605Z01030 | E6: 豊田駅西NMS | F6: 5100 | H6: =IFERROR(VLOOKUP(D6,[1]全紙!$F:$K,6,0),"") -> 1850 | I6: =F6-H6 -> 3250 | J6: ○ | K6: ○
D7: 230605Z01270 | E7: 豊田元町NMS | F7: 2800 | H7: =IFERROR(VLOOKUP(D7,[1]全紙!$F:$K,6,0),"") -> 950 | I7: 1850 | J7: ○ | K7: ○
D8: 230605Z01230 | E8: 上挙母NMS | F8: 3850 | H8: =IFERROR(VLOOKUP(D8,[1]全紙!$F:$K,6,0),"") -> 1350 | I8: 2500 | J8: ○ | K8: ○
D9: 230605Z01050 | E9: 挙母栄町NMS | F9: 5600 | H9: =IFERROR(VLOOKUP(D9,[1]全紙!$F:$K,6,0),"") -> 2300 | I9: 3300 | J9: ○ | K9: ○
D10: 230605Z01200 | E10: 挙母小清水NM | F10: 4600 | H10: =IFERROR(VLOOKUP(D10,[1]全紙!$F:$K,6,0),"") -> 1750 | I10: 2850 | J10: ○ | K10: ○
D11: 230605Z01220 | E11: 豊田美山NM | F11: 3800 | H11: =IFERROR(VLOOKUP(D11,[1]全紙!$F:$K,6,0),"") -> 1450 | I11: 2350 | J11: ○ | K11: ○
D12: 230605Z01070 | E12: 土橋NMS | F12: 7600 | H12: =IFERROR(VLOOKUP(D12,[1]全紙!$F:$K,6,0),"") -> 2250 | I12: 5350 | J12: ○ | K12: ○
D13: 230605Z01020 | E13: 挙母東部NM | F13: 8000 | H13: =IFERROR(VLOOKUP(D13,[1]全紙!$F:$K,6,0),"") -> 3800 | I13: =F13-H13 -> 4200 | J13: ○ | K13: ○
D14: 230605Z01440 | E14: 豊田市木NM | F14: 5700 | H14: =IFERROR(VLOOKUP(D14,[1]全紙!$F:$K,6,0),"") -> 2150 | I14: 3550 | J14: ○ | K14: ○
D15: 230605Z01450 | E15: 豊田東山NM | F15: 6600 | H15: =IFERROR(VLOOKUP(D15,[1]全紙!$F:$K,6,0),"") -> 2100 | I15: 4500 | J15: ○ | K15: ○
D16: 230605Z01060 | E16: 豊田(柘植)NMS | F16: 12500 | H16: =IFERROR(VLOOKUP(D16,[1]全紙!$F:$K,6,0),"") -> 4550 | I16: 7950 | J16: ○ | K16: ○
D17: 230605Z01250 | E17: 豊田大林NM | F17: 4550 | H17: =IFERROR(VLOOKUP(D17,[1]全紙!$F:$K,6,0),"") -> 1500 | I17: 3050 | J17: ○ | K17: ○
D18: 230605Z01120 | E18: 上郷NMS | F18: 2900 | H18: =IFERROR(VLOOKUP(D18,[1]全紙!$F:$K,6,0),"") -> 1300 | I18: 1600 | J18: ○ | K18: ○
D19: 230605Z01130 | E19: 上郷北部NM | F19: 3000 | H19: =IFERROR(VLOOKUP(D19,[1]全紙!$F:$K,6,0),"") -> 1450 | I19: 1550 | J19: ○ | K19: ○
D20: 230605Z01140 | E20: 上郷畝部NMS | F20: 2900 | H20: =IFERROR(VLOOKUP(D20,[1]全紙!$F:$K,6,0),"") -> 1350 | I20: 1550 | J20: ○ | K20: ○
D21: 230605Z01110 | E21: 三河高岡NAMS | F21: 7700 | H21: =IFERROR(VLOOKUP(D21,[1]全紙!$F:$K,6,0),"") -> 2950 | I21: 4750 | J21: ○ | K21: ○
D22: 230605Z01101 | E22: 若林西NMS | F22: 3600 | H22: =IFERROR(VLOOKUP(D22,[1]全紙!$F:$K,6,0),"") -> 1650 | I22: 1950 | J22: ○ | K22: ○
D23: 230605Z01090 | E23: 竹村NM | F23: 3450 | H23: =IFERROR(VLOOKUP(D23,[1]全紙!$F:$K,6,0),"") -> 1450 | I23: 2000 | J23: ○ | K23: ○
D24: 230605Z01100 | E24: 若林NMS | F24: 6950 | H24: =IFERROR(VLOOKUP(D24,[1]全紙!$F:$K,6,0),"") -> 2700 | I24: 4250 | J24: ○ | K24: ○
D25: 230605Z01300 | E25: 平戸橋NMS | F25: 4000 | H25: =IFERROR(VLOOKUP(D25,[1]全紙!$F:$K,6,0),"") -> 1550 | I25: 2450 | J25: ○ | K25: ○
D26: 230605Z01150 | E26: 浄水四郷NMS | F26: 11100 | H26: =IFERROR(VLOOKUP(D26,[1]全紙!$F:$K,6,0),"") -> 4700 | I26: 6400 | J26: ○ | K26: ○
D27: 230605Z01160 | E27: 豊田乙部ヶ丘NM | F27: 2950 | H27: =IFERROR(VLOOKUP(D27,[1]全紙!$F:$K,6,0),"") -> 1000 | I27: 1950 | J27: ○ | K27: ○
D28: 230605Z01210 | E28: 保見NMS | F28: 3850 | H28: =IFERROR(VLOOKUP(D28,[1]全紙!$F:$K,6,0),"") -> 1350 | I28: 2500 | J28: ○ | K28: ○
D29: 230605Z01170 | E29: 西中金NAMS | F29: 1500 | H29: =IFERROR(VLOOKUP(D29,[1]全紙!$F:$K,6,0),"") -> 1500 | I29: 0
D30: 230605Z01360 | E30: 藤岡NAMS | F30: 3100 | H30: =IFERROR(VLOOKUP(D30,[1]全紙!$F:$K,6,0),"") -> 1500 | I30: 1600 | J30: ○ | K30: ○
D31: 230605Z01370 | E31: 藤岡北NAMS | F31: 1400 | H31: =IFERROR(VLOOKUP(D31,[1]全紙!$F:$K,6,0),"") -> 1400 | I31: 0
D32: 230605Z01380 | E32: 小原NAM | F32: 650 | H32: =IFERROR(VLOOKUP(D32,[1]全紙!$F:$K,6,0),"") -> 650
D33: 230605Z01180 | E33: 九久平NAMS | F33: 2350 | H33: =IFERROR(VLOOKUP(D33,[1]全紙!$F:$K,6,0),"") -> 1750 | I33: =F33-H33 -> 600 | J33: ○ | K33: ○
D34: 230605Z01330 | E34: 足助NAMS | F34: 850 | H34: =IFERROR(VLOOKUP(D34,[1]全紙!$F:$K,6,0),"") -> 850
D35: 230605Z01390 | E35: 旭NAM | F35: 400 | H35: =IFERROR(VLOOKUP(D35,[1]全紙!$F:$K,6,0),"") -> 400
D36: 230605Z01400 | E36: 小原別口AM | F36: 150 | H36: =IFERROR(VLOOKUP(D36,[1]全紙!$F:$K,6,0),"") -> 150
D37: 230661Z01010 | E37: 稲武NAMS | F37: 500 | H37: =IFERROR(VLOOKUP(D37,[1]全紙!$F:$K,6,0),"") -> 500
D38: 230605Z01340 | E38: 豊田下山NAM | F38: 850 | H38: =IFERROR(VLOOKUP(D38,[1]全紙!$F:$K,6,0),"") -> 850
H39: =IFERROR(VLOOKUP(D39,[1]全紙!$F:$K,6,0),"") -> 
H40: =IFERROR(VLOOKUP(D40,[1]全紙!$F:$K,6,0),"") -> 
H41: =IFERROR(VLOOKUP(D41,[1]全紙!$F:$K,6,0),"") -> 
H42: =IFERROR(VLOOKUP(D42,[1]全紙!$F:$K,6,0),"") -> 
H43: =IFERROR(VLOOKUP(D43,[1]全紙!$F:$K,6,0),"") -> 
H44: =IFERROR(VLOOKUP(D44,[1]全紙!$F:$K,6,0),"") -> 
H45: =IFERROR(VLOOKUP(D45,[1]全紙!$F:$K,6,0),"") -> 
H46: =IFERROR(VLOOKUP(D46,[1]全紙!$F:$K,6,0),"") -> 
H47: =IFERROR(VLOOKUP(D47,[1]全紙!$F:$K,6,0),"") -> 
E48: =CONCATENATE(FIXED(COUNTA(E5:E47),0,0)," 店") -> 34 店 | F48: =SUM(F5:F47) -> 142050 | G48: =SUM(G5:G47) -> 0 | H48: =SUM(H5:H47) -> 59150 | I48: =SUM(I5:I47) -> 82900
A49: 2026年前期（12月1日以降） | K49: ㈱中日総合サービス

Sheet みよし市・岡崎市
A1: 折込日 | E1: 広告主 | H1: サイズ
E2: チラシ銘柄 | H2: 部数 | I2: =SUM(A6,A17) -> 0
K3: ※2025年12月は第2金曜日、2026年5月は第4金曜日のみの実施となります。
A4: 地区 | D4: 店名 | F4: 折込プラス部数 | G4: 依頼部数 | H4: 朝刊折込部数 | I4: 未購読部数 | J4: 第2金曜日 | K4: 第4金曜日
A5: みよし市 | D5: 230655Z01010 | E5: 三好NMS | F5: 7400 | H5: 3450 | I5: =F5-H5 -> 3950 | J5: ○ | K5: ○
A6: =SUM(G14) -> 0 | B6: ／ | C6: =SUM(F14) -> 19600 | D6: 230655Z01030 | E6: 三好莇生NMS | F6: 3000 | H6: 1250 | I6: =F6-H6 -> 1750 | J6: ○ | K6: ○
D7: 230655Z01020 | E7: 三好ヶ丘NMS | F7: 9200 | H7: 3650 | I7: =F7-H7 -> 5550 | J7: ○ | K7: ○
E14: =CONCATENATE(FIXED(COUNTA(E5:E13),0,0)," 店") -> 3 店 | F14: =SUM(F5:F13) -> 19600 | G14: =SUM(G5:G13) -> 0 | H14: =SUM(H5:H13) -> 8350 | I14: =SUM(I5:I13) -> 11250
A16: 岡崎市 | D16: 230630Z01050 | E16: 岡崎(石垣)NMS | F16: 6500 | H16: 2650 | I16: =F16-H16 -> 3850 | J16: ○ | K16: ○
A17: =SUM(G48) -> 0 | B17: ／ | C17: =SUM(F48) -> 130050 | D17: 230630Z01310 | E17: 岡崎東部NMS | F17: 5000 | H17: 1950 | I17: 3050 | J17: ○ | K17: ○
D18: 230630Z01070 | E18: 岡崎南部NS | F18: 7700 | H18: 2700 | I18: 5000 | J18: ○ | K18: ○
D19: 230630Z01060 | E19: 岡崎西部NMS | F19: 7400 | H19: 2850 | I19: 4550 | J19: ○ | K19: ○
D20: 230630Z01080 | E20: 岡崎竜美ヶ丘NS | F20: 4400 | H20: 1800 | I20: 2600 | J20: ○ | K20: ○
D21: 230630Z01040 | E21: 岡崎北部NMS | F21: 6800 | H21: 2650 | I21: 4150 | J21: ○ | K21: ○
D22: 230630Z01170 | E22: 矢作NMS | F22: 20050 | H22: 8000 | I22: 12050 | J22: ○ | K22: ○
D23: 230630Z01090 | E23: 岡崎戸崎NS | F23: 4000 | H23: 1550 | I23: 2450 | J23: ○ | K23: ○
D24: 230630Z01290 | E24: 光ヶ丘NS | F24: 3550 | H24: 1300 | I24: 2250 | J24: ○ | K24: ○
D25: 230630Z01150 | E25: 岡崎上和田NM | F25: 2350 | H25: 700 | I25: 1650 | J25: ○ | K25: ○
D26: 230630Z01160 | E26: 六ツ美NMS | F26: 4000 | H26: 1350 | I26: 2650 | J26: ○ | K26: ○
D27: 230630Z01250 | E27: 六ツ美北NMS | F27: 2300 | H27: 900 | I27: 1400 | J27: ○ | K27: ○
D28: 230630Z01100 | E28: 羽根NS | F28: 3800 | H28: 1500 | I28: 2300 | J28: ○ | K28: ○
D29: 230630Z01110 | E29: 岡崎針崎NMS | F29: 3200 | H29: 1300 | I29: 1900 | J29: ○ | K29: ○
D30: 230630Z01140 | E30: 岡崎上地台NMS | F30: 3700 | H30: 1450 | I30: 2250 | J30: ○ | K30: ○
D31: 230630Z01020 | E31: 岡崎大門NMS | F31: 5550 | H31: 2050 | I31: 3500 | J31: ○ | K31: ○
D32: 230630Z01030 | E32: 岡崎常磐NMS | F32: 2350 | H32: 1350 | I32: 1000 | J32: ○ | K32: ○
D33: 230630Z01260 | E33: 岡崎真伝NMS | F33: 3000 | H33: 1350 | I33: 1650 | J33: ○ | K33: ○
D34: 230630Z01180 | E34: 岡崎大平NM | F34: 3350 | H34: 1300 | I34: 2050 | J34: ○ | K34: ○
D35: 230630Z01130 | E35: 土呂NMS | F35: 7700 | H35: 3350 | I35: 4350 | J35: ○ | K35: ○
D36: 230630Z01240 | E36: 岡崎青野NMS | F36: 1650 | H36: 1000 | I36: 650 | J36: ○ | K36: ○
D37: 230630Z01010 | E37: 岩津NMS | F37: 6450 | H37: 3200 | I37: 3250 | J37: ○ | K37: ○
D38: 230630Z01190 | E38: 美合南部NAMYS | F38: 4650 | H38: 2050 | I38: 2600 | J38: ○ | K38: ○
D39: 230630Z01200 | E39: 美合北部NAMYS | F39: 2600 | H39: 1200 | I39: 1400 | J39: ○ | K39: ○
D40: 230630Z01220 | E40: 本宿NAMYS | F40: 5950 | H40: 2950 | I40: 3000 | J40: ○ | K40: ○
D41: 230630Z01210 | E41: 河合NAM | F41: 900 | H41: 900 | I41: 0
D42: 230630Z01270 | E42: 豊富NAMS | F42: 850 | H42: 850 | I42: 0
D43: 230630Z01280 | E43: 宮崎NAM | F43: 300 | H43: 300
E48: =CONCATENATE(FIXED(COUNTA(E16:E47),0,0)," 店") -> 28 店 | F48: =SUM(F16:F47) -> 130050 | G48: =SUM(G16:G47) -> 0 | H48: =SUM(H16:H47) -> 54500 | I48: =SUM(I16:I47) -> 75550
A49: 2026年前期（12月1日以降） | K49: ㈱中日総合サービス

Sheet 額田郡・西尾市・蒲郡市
A1: 折込日 | E1: 広告主 | H1: サイズ
E2: チラシ銘柄 | H2: 部数 | I2: =SUM(A6,A16,A35) -> 0
K3: ※2025年12月は第2金曜日、2026年5月は第4金曜日のみの実施となります。
A4: 地区 | D4: 店名 | F4: 折込プラス部数 | G4: 依頼部数 | H4: 朝刊折込部数 | I4: 未購読部数 | J4: 第2金曜日 | K4: 第4金曜日
A5: 額田郡 | D5: 230650Z01030 | E5: 幸田NAMS | F5: 11600 | H5: 5400 | I5: =F5-H5 -> 6200 | J5: ○ | K5: ○
A6: =SUM(G13) -> 0 | B6: ／ | C6: =SUM(F13) -> 11600
E13: =CONCATENATE(FIXED(COUNTA(E5:E12),0,0)," 店") -> 1 店 | F13: =SUM(F5:F12) -> 11600 | G13: =SUM(G5:G12) -> 0 | H13: =SUM(H5:H12) -> 5400 | I13: =SUM(I5:I12) -> 6200
A15: 西尾市 | D15: 230640Z01010 | E15: 西尾NMS | F15: 18700 | H15: 9250 | I15: =F15-H15 -> 9450 | J15: ○ | K15: ○
A16: =SUM(G32) -> 0 | B16: ／ | C16: =SUM(F32) -> 50350 | D16: 230640Z01020 | E16: 平坂NMS | F16: 7000 | H16: 3600 | I16: 3400 | J16: ○ | K16: ○
D17: 230640Z01030 | E17: 三江島NMS | F17: 6550 | H17: 2950 | I17: 3600 | J17: ○ | K17: ○
D18: 230640Z01040 | E18: 米津NMS | F18: 2000 | H18: 900 | I18: 1100 | J18: ○ | K18: ○
D19: 230640Z01050 | E19: 三河一色NAMS | F19: 6700 | H19: 3800 | I19: 2900 | J19: ○ | K19: ○
D20: 230640Z01060 | E20: 吉良吉田NAM | F20: 1950 | H20: 1100 | I20: 850 | J20: ○ | K20: ○
D21: 230640Z01070 | E21: 吉良白浜NAM | F21: 1800 | H21: 1000 | I21: 800 | J21: ○ | K21: ○
D22: 230640Z01080 | E22: 上横須賀NM | F22: 3400 | H22: 1650 | I22: 1750 | J22: ○ | K22: ○
D23: 230640Z01090 | E23: 西幡豆NAMS | F23: 2250 | H23: 1250 | I23: 1000 | J23: ○ | K23: ○
I24: 0
E32: =CONCATENATE(FIXED(COUNTA(E15:E31),0,0)," 店") -> 9 店 | F32: =SUM(F15:F31) -> 50350 | G32: =SUM(G15:G31) -> 0 | H32: =SUM(H15:H31) -> 25500 | I32: =SUM(I15:I31) -> 24850
A34: 蒲郡市 | D34: 230740Z01010 | E34: 蒲郡NMS | F34: 15250 | H34: 7800 | I34: =F34-H34 -> 7450 | J34: ○ | K34: ○
A35: =SUM(G48) -> 0 | B35: ／ | C35: =SUM(F48) -> 20600 | D35: 230740Z01030 | E35: 蒲郡西NAMS | F35: 5350 | H35: 5350 | I35: =F35-H35 -> 0
E48: =CONCATENATE(FIXED(COUNTA(E34:E47),0,0)," 店") -> 2 店 | F48: =SUM(F34:F47) -> 20600 | G48: =SUM(G34:G47) -> 0 | H48: =SUM(H34:H47) -> 13150 | I48: =SUM(I34:I47) -> 7450
A49: 2026年前期（12月1日以降） | K49: ㈱中日総合サービス

Sheet 豊川市
A1: 折込日 | E1: 広告主 | H1: サイズ
E2: チラシ銘柄 | H2: 部数 | I2: =SUM(A6) -> 0
K3: ※2025年12月は第2金曜日、2026年5月は第4金曜日のみの実施となります。
A4: 地区 | D4: 店名 | F4: 折込プラス部数 | G4: 依頼部数 | H4: 朝刊折込部数 | I4: 未購読部数 | J4: 第2金曜日 | K4: 第4金曜日
A5: 豊川市 | D5: 230720Z01010 | E5: 豊川(西本)NMS | F5: 10000 | H5: 4700 | I5: =F5-H5 -> 5300 | J5: ○ | K5: ○
A6: =SUM(G48) -> 0 | B6: ／ | C6: =SUM(F48) -> 66700 | D6: 230720Z01020 | E6: 豊川中条NMS | F6: 2150 | H6: 850 | I6: 1300 | J6: ○ | K6: ○
D7: 230720Z01030 | E7: 豊川諏訪NMS | F7: 6800 | H7: 2400 | I7: 4400 | J7: ○ | K7: ○
D8: 230720Z01040 | E8: 牛久保(中村)NMS | F8: 1700 | H8: 800 | I8: 900 | J8: ○ | K8: ○
D9: 230720Z01050 | E9: 牛久保(大万)NM | F9: 2400 | H9: 1050 | I9: 1350 | J9: ○ | K9: ○
D10: 230720Z01060 | E10: 牛久保(中部大万)NMS | F10: 4100 | H10: 1650 | I10: 2450 | J10: ○ | K10: ○
D11: 230720Z01070 | E11: 豊川蔵子NMS | F11: 2750 | H11: 1300 | I11: 1450 | J11: ○ | K11: ○
D12: 230720Z01080 | E12: 豊川国府NMS | F12: 6200 | H12: 2950 | I12: 3250 | J12: ○ | K12: ○
D13: 230720Z01090 | E13: 豊川八南NM | F13: 3800 | H13: 1700 | I13: 2100 | J13: ○ | K13: ○
D14: 230720Z01100 | E14: 御油NMS | F14: 3100 | H14: 1350 | I14: 1750 | J14: ○ | K14: ○
D15: 230720Z01140 | E15: 三河一宮NAMS | F15: 6050 | H15: 3200 | I15: 2850 | J15: ○ | K15: ○
D16: 230720Z01150 | E16: 御津（鈴木）NMS | F16: 2400 | H16: 1200 | I16: 1200 | J16: ○ | K16: ○
D17: 230720Z01160 | E17: 御津（小林）NMS | F17: 3650 | H17: 1750 | I17: 1900 | J17: ○ | K17: ○
D18: 230720Z01120 | E18: 豊川音羽NAMS | F18: 3200 | H18: 1600 | I18: 1600 | J18: ○ | K18: ○
D19: 230720Z01170 | E19: 西小坂井NMS | F19: 3800 | H19: 1650 | I19: 2150 | J19: ○ | K19: ○
D20: 230720Z01180 | E20: 小坂井駅前NMS | F20: 2250 | H20: 1300 | I20: 950 | J20: ○ | K20: ○
D21: 230720Z01190 | E21: 豊川美園NM | F21: 2350 | H21: 1050 | I21: 1300 | J21: ○ | K21: ○
E48: =CONCATENATE(FIXED(COUNTA(E5:E47),0,0)," 店") -> 17 店 | F48: =SUM(F5:F47) -> 66700 | G48: =SUM(G5:G47) -> 0 | H48: =SUM(H5:H47) -> 30500 | I48: =SUM(I5:I47) -> 36200
A49: 2026年前期（12月1日以降） | K49: ㈱中日総合サービス

Sheet 新城市・北設楽郡
A1: 折込日 | E1: 広告主 | H1: サイズ
E2: チラシ銘柄 | H2: 部数 | I2: =SUM(A6,A29) -> 0
K3: ※2025年12月は第2金曜日、2026年5月は第4金曜日のみの実施となります。
A4: 地区 | D4: 店名 | F4: 折込プラス部数 | G4: 依頼部数 | H4: 朝刊折込部数 | I4: 未購読部数 | J4: 第2金曜日 | K4: 第4金曜日
A5: 新城市 | D5: 230730Z01010 | E5: 新城西NAMYS | F5: 6200 | H5: 3700 | I5: =F5-H5 -> 2500 | J5: ○ | K5: ○
A6: =SUM(G26) -> 0 | B6: ／ | C6: =SUM(F26) -> 14000 | D6: 230730Z01020 | E6: 新城東NAMYS | F6: 4200 | H6: 2300 | I6: 1900 | J6: ○ | K6: ○
D7: 230760Z01010 | E7: 三河大海NAMY | F7: 450 | H7: 450 | I7: 0
D8: 230760Z01060 | E8: 新城北NAM | F8: 200 | H8: 200 | I8: 0
D9: 230760Z01020 | E9: 作手NAMY | F9: 550 | H9: 550 | I9: 0
D10: 230760Z01030 | E10: 長篠NAMYS | F10: 1100 | H10: 1100 | I10: 0
D11: 230760Z01040 | E11: 三河大野NAMY | F11: 800 | H11: 800 | I11: 0
D12: 230760Z01050 | E12: 海老NAMYS | F12: 500 | H12: 500 | I12: 0
E26: =CONCATENATE(FIXED(COUNTA(E5:E25),0,0)," 店") -> 8 店 | F26: =SUM(F5:F25) -> 14000 | G26: =SUM(G5:G25) -> 0 | H26: =SUM(H5:H25) -> 9600 | I26: =SUM(I5:I25) -> 4400
A28: 北設楽郡 | D28: 230770Z01030 | E28: 田口NAM | F28: 750 | H28: 750 | I28: =F28-H28 -> 0
A29: =SUM(G48) -> 0 | B29: ／ | C29: =SUM(F48) -> 2450 | D29: 230770Z01040 | E29: 名倉NAM | F29: 250 | H29: 250 | I29: 0
D30: 230770Z01050 | E30: 津具NAMS | F30: 350 | H30: 350 | I30: 0
D31: 230770Z01020 | E31: 三河本郷NAMYS | F31: 800 | H31: 800 | I31: 0
D32: 230770Z01080 | E32: 大嵐富山A | F32: 50 | H32: 50 | I32: 0
D33: 230770Z01090 | E33: 豊根AM | F33: 250 | H33: 250 | I33: 0
E48: =CONCATENATE(FIXED(COUNTA(E28:E47),0,0)," 店") -> 6 店 | F48: =SUM(F28:F47) -> 2450 | G48: =SUM(G28:G47) -> 0 | H48: =SUM(H28:H47) -> 2450 | I48: =SUM(I28:I47) -> 0
A49: 2026年前期（12月1日以降） | K49: ㈱中日総合サービス

Sheet 豊橋市
A1: 折込日 | E1: 広告主 | H1: サイズ
E2: チラシ銘柄 | H2: 部数 | I2: =SUM(A6) -> 0
K3: ※2025年12月は第2金曜日、2026年5月は第4金曜日のみの実施となります。
A4: 地区 | D4: 店名 | F4: 折込プラス部数 | G4: 依頼部数 | H4: 朝刊折込部数 | I4: 未購読部数 | J4: 第2金曜日 | K4: 第4金曜日
A5: 豊橋市 | D5: 230710Z01010 | E5: 豊橋中央(佐久間)NMS | F5: 17800 | H5: 7300 | I5: =F5-H5 -> 10500 | J5: ○ | K5: ○
A6: =SUM(G48) -> 0 | B6: ／ | C6: =SUM(F48) -> 135800 | D6: 230710Z01020 | E6: 豊橋東部NMS | F6: 7900 | H6: 3250 | I6: 4650 | J6: ○ | K6: ○
D7: 230710Z01030 | E7: 豊橋南部NMS | F7: 6900 | H7: 1950 | I7: 4950 | J7: ○ | K7: ○
D8: 230710Z01040 | E8: 豊橋西部NM | F8: 8450 | H8: 3300 | I8: 5150 | J8: ○ | K8: ○
D9: 230710Z01050 | E9: 豊橋上地NMS | F9: 3050 | H9: 1200 | I9: 1850 | J9: ○ | K9: ○
D10: 230710Z01330 | E10: 豊橋鷹丘NM | F10: 4250 | H10: 1700 | I10: 2550 | J10: ○ | K10: ○
D11: 230710Z01070 | E11: 豊橋飯村NMS | F11: 6700 | H11: 2900 | I11: 3800 | J11: ○ | K11: ○
D12: 230710Z01080 | E12: 豊橋花田NM | F12: 4100 | H12: 1650 | I12: 2450 | J12: ○ | K12: ○
D13: 230710Z01090 | E13: 豊橋向ヶ丘NM | F13: 3600 | H13: 1850 | I13: 1750 | J13: ○ | K13: ○
D14: 230710Z01100 | E14: 豊橋北部NM | F14: 3600 | H14: 1400 | I14: 2200 | J14: ○ | K14: ○
D15: 230710Z01110 | E15: 豊橋玉川NAM | F15: 1800 | H15: 1150 | I15: 650 | J15: ○ | K15: ○
D16: 230710Z01120 | E16: 豊橋牛川NM | F16: 3750 | H16: 1500 | I16: 2250 | J16: ○ | K16: ○
D17: 230710Z01130 | E17: 豊橋吉田方NMS | F17: 5800 | H17: 2450 | I17: 3350 | J17: ○ | K17: ○
D18: 230710Z01140 | E18: 豊橋北山NMS | F18: 5000 | H18: 1900 | I18: 3100 | J18: ○ | K18: ○
D19: 230710Z01160 | E19: 豊橋二川南NMS | F19: 7600 | H19: 3300 | I19: 4300 | J19: ○ | K19: ○
D20: 230710Z01170 | E20: 豊橋向山NMS | F20: 2600 | H20: 1100 | I20: 1500 | J20: ○ | K20: ○
D21: 230710Z01190 | E21: 豊橋栄NM | F21: 4050 | H21: 1400 | I21: 2650 | J21: ○ | K21: ○
D22: 230710Z01200 | E22: 豊橋上野NM | F22: 5900 | H22: 2500 | I22: 3400 | J22: ○ | K22: ○
D23: 230710Z01220 | E23: 豊橋東岩田NMS | F23: 4650 | H23: 1800 | I23: 2850 | J23: ○ | K23: ○
D24: 230710Z01240 | E24: 豊橋大村NM | F24: 2900 | H24: 1200 | I24: =F24-H24 -> 1700 | J24: ○ | K24: ○
D25: 230710Z01250 | E25: 豊橋磯辺NM | F25: 3400 | H25: 1400 | I25: 2000 | J25: ○ | K25: ○
D26: 230710Z01270 | E26: 豊橋南栄NM | F26: 3900 | H26: 1300 | I26: 2600 | J26: ○ | K26: ○
D27: 230710Z01290 | E27: 老津NAM | F27: 4150 | H27: 2400 | I27: 1750 | J27: ○ | K27: ○
D28: 230710Z01300 | E28: 豊橋佐藤町NMS | F28: 6900 | H28: 2400 | I28: 4500 | J28: ○ | K28: ○
D29: 230710Z01310 | E29: 豊橋曙NM | F29: 2850 | H29: 1200 | I29: 1650 | J29: ○ | K29: ○
D30: 230710Z01320 | E30: 豊橋野依NMS | F30: 3750 | H30: 1850 | I30: 1900 | J30: ○ | K30: ○
D31: 230710Z01340 | E31: 豊橋下条NMS | F31: 450 | H31: 250 | I31: 200 | J31: 〇 | K31: 〇
E48: =CONCATENATE(FIXED(COUNTA(E5:E47),0,0)," 店") -> 27 店 | F48: =SUM(F5:F47) -> 135800 | G48: =SUM(G5:G47) -> 0 | H48: =SUM(H5:H47) -> 55600 | I48: =SUM(I5:I47) -> 80200
A49: 2026年前期（12月1日以降） | K49: ㈱中日総合サービス

Sheet 田原市
A1: 折込日 | E1: 広告主 | H1: サイズ
E2: チラシ銘柄 | H2: 部数 | I2: =SUM(A6) -> 0
K3: ※2025年12月は第2金曜日、2026年5月は第4金曜日のみの実施となります。
A4: 地区 | D4: 店名 | F4: 折込プラス部数 | G4: 依頼部数 | H4: 朝刊折込部数 | I4: 未購読部数 | J4: 第2金曜日 | K4: 第4金曜日
A5: 田原市 | D5: 230780Z01010 | E5: 田原NAMS | F5: 6200 | H5: 6200 | I5: =F5-H5 -> 0
A6: =SUM(G48) -> 0 | B6: ／ | C6: =SUM(F48) -> 10550 | D6: 230785Z01010 | E6: 赤羽根NAM | F6: 1050 | H6: 1050 | I6: =F6-H6 -> 0
D7: 230785Z01020 | E7: 泉NAMYS | F7: 700 | H7: 700 | I7: =F7-H7 -> 0
D8: 230785Z01030 | E8: 福江NAMYS | F8: 2600 | H8: 2600 | I8: =F8-H8 -> 0
E48: =CONCATENATE(FIXED(COUNTA(E5:E47),0,0)," 店") -> 4 店 | F48: =SUM(F5:F47) -> 10550 | G48: =SUM(G5:G47) -> 0 | H48: =SUM(H5:H47) -> 10550 | I48: =SUM(I5:I47) -> 0
A49: 2026年前期（12月1日以降） | K49: ㈱中日総合サービス
